{"text_format":"1","workbook":"xlsx","n_sheets":7,"sheets":["NamenSort","Wer - Wo","Runde 1 - 5","GESAMTTABELLE","Anleitung","Siegerliste","Urkunde"],"not_rendered":{"charts":0,"images":6,"macros":1,"external_links":0,"defined_names":1,"comments":1,"pivot_tables":0},"unopened":[],"bounds":{"document_bytes":16777216,"sheet_cells":100000,"rows_first":2000,"rows_last":500,"rows_between":2000,"halvings":0,"cell_chars":16384,"cell_head_chars":4096},"cells_cut":0,"cells_raw":0,"read":"whole","date_system":"1900"}

{"sheet":"NamenSort","index":0,"n_rows":98,"n_cols":10,"rows_kept":98,"cut":false,"hidden":false,"merged":[]}
[null,"Spielernamen"," ","1.","Erst alle Spielernamen eintragen (max.96)"]
["Nr.","hier eintragen"]
[1,null,{"$f":"IF(B3=\"\",\"\",RAND())","v":""},"2.","Erst nachdem alle Namen eingetragen sind, den AUSLOSEN-BUTTON drücken,"]
[2,null,""," "]
[3,null,""," ",">>>>>>>>",null,null,null,null,"<<<<<<<<<<"]
[4,null,""," "," "]
[5,null,"","3. ","              Nach dem Auslosen wechselt Excel auf  die \"Wer - Wo\" Seite"]
[6,null,"",null,"um die sortierte Spiellerliste nach Tisch und Platz anzusehen und auszudrucken."]
[7,null,"","4. ","Dann auf die Seite \"Runde 1 - 5\" wechseln - ausdrucken - ausfüllen - buchen."]
[8,null,"",null,"Auf dieser Seite können Sie auch die Siegerliste ermitteln und ausdrucken."]
[9,null,"",null," "]
[10,null,"",null," "]
[11,null,""]
[12,null,""]
[13,null,""]
[14,null,""]
[15,null,""]
[16,null,""]
[17,null,""]
[18,null,"",null,"Achtung dieser Button",null,"Bitte nur vor jedem NEUSTART die Tabellen leeren "]
[19,null,"",null,"löscht alles. Nur vor oder"]
[20,null,"",null,"zum Anlegen eines neuen"]
[21,null,"",null,"Spieles verwenden  !",null,"weil sonst alle Einträge unwiederruflich weg sind!"]
[22,null,""]
[23,null,""]
[24,null,""]
[25,null,""]
[26,null,""]
[27,null,""]
[28,null,""]
[29,null,""]
[30,null,""]
[31,null,""]
[32,null,""]
[33,null,{"$f":"IF(B35=\"\",\"\",RAND())","v":""}]
[34,null,""]
[35,null,""]
[36,null,""]
[37,null,""]
[38,null,""]
[39,null,""]
[40,null,""]
[41,null,""]
[42,null,""]
[43,null,""]
[44,null,""]
[45,null,""]
[46,null,""]
[47,null,""]
[48,null,""]
[49,null,""]
[50,null,""]
[51,null,""]
[52,null,""]
[53,null,""]
[54,null,""]
[55,null,""]
[56,null,""]
[57,null,""]
[58,null,""]
[59,null,""]
[60,null,""]
[61,null,""]
[62,null,""]
[63,null,""]
[64,null,""]
[65,null,{"$f":"IF(B67=\"\",\"\",RAND())","v":""}]
[66,null,""]
[67,null,""]
[68,null,""]
[69,null,""]
[70,null,""]
[71,null,""]
[72,null,""]
[73,null,""]
[74,null,""]
[75,null,""]
[76,null,""]
[77,null,""]
[78,null,""]
[79,null,""]
[80,null,""]
[81,null,""]
[82,null,""]
[83,null,""]
[84,null,""]
[85,null,""]
[86,null,""]
[87,null,""]
[88,null,""]
[89,null,""]
[90,null,""]
[91,null,""]
[92,null,""]
[93,null,""]
[94,null,""]
[95,null,""]
[96,null,""]

{"sheet":"Wer - Wo","index":1,"n_rows":97,"n_cols":7,"rows_kept":97,"cut":false,"hidden":false,"merged":[]}
["lfd. Nr","Name","Tisch ","Platz",null,"Spielrunde",1]
[1,{"$f":"(IF(NamenSort!B3=\"\",\"zzz\",NamenSort!B3))","v":"zzz"},1,1,null,"wurde neu sortiert"]
[2,{"$f":"(IF(NamenSort!B4=\"\",\"zzz\",NamenSort!B4))","v":"zzz"},1,2,null," "," "]
[3,{"$f":"(IF(NamenSort!B5=\"\",\"zzz\",NamenSort!B5))","v":"zzz"},1,3,null,{"$f":"TODAY()","v":"2019-06-30"}]
[4,{"$f":"(IF(NamenSort!B6=\"\",\"zzz\",NamenSort!B6))","v":"zzz"},1,4,null," "]
[5,{"$f":"(IF(NamenSort!B7=\"\",\"zzz\",NamenSort!B7))","v":"zzz"},2,1]
[6,{"$f":"(IF(NamenSort!B8=\"\",\"zzz\",NamenSort!B8))","v":"zzz"},2,2,null," "]
[7,{"$f":"(IF(NamenSort!B9=\"\",\"zzz\",NamenSort!B9))","v":"zzz"},2,3]
[8,{"$f":"(IF(NamenSort!B10=\"\",\"zzz\",NamenSort!B10))","v":"zzz"},2,4]
[9,{"$f":"(IF(NamenSort!B11=\"\",\"zzz\",NamenSort!B11))","v":"zzz"},3,1]
[10,{"$f":"(IF(NamenSort!B12=\"\",\"zzz\",NamenSort!B12))","v":"zzz"},3,2]
[11,{"$f":"(IF(NamenSort!B13=\"\",\"zzz\",NamenSort!B13))","v":"zzz"},3,3]
[12,{"$f":"(IF(NamenSort!B14=\"\",\"zzz\",NamenSort!B14))","v":"zzz"},3,4]
[13,{"$f":"(IF(NamenSort!B15=\"\",\"zzz\",NamenSort!B15))","v":"zzz"},4,1]
[14,{"$f":"(IF(NamenSort!B16=\"\",\"zzz\",NamenSort!B16))","v":"zzz"},4,2]
[15,{"$f":"(IF(NamenSort!B17=\"\",\"zzz\",NamenSort!B17))","v":"zzz"},4,3]
[16,{"$f":"(IF(NamenSort!B18=\"\",\"zzz\",NamenSort!B18))","v":"zzz"},4,4]
[17,{"$f":"(IF(NamenSort!B19=\"\",\"zzz\",NamenSort!B19))","v":"zzz"},5,1]
[18,{"$f":"(IF(NamenSort!B20=\"\",\"zzz\",NamenSort!B20))","v":"zzz"},5,2]
[19,{"$f":"(IF(NamenSort!B21=\"\",\"zzz\",NamenSort!B21))","v":"zzz"},5,3]
[20,{"$f":"(IF(NamenSort!B22=\"\",\"zzz\",NamenSort!B22))","v":"zzz"},5,4]
[21,{"$f":"(IF(NamenSort!B23=\"\",\"zzz\",NamenSort!B23))","v":"zzz"},6,1]
[22,{"$f":"(IF(NamenSort!B24=\"\",\"zzz\",NamenSort!B24))","v":"zzz"},6,2]
[23,{"$f":"(IF(NamenSort!B25=\"\",\"zzz\",NamenSort!B25))","v":"zzz"},6,3]
[24,{"$f":"(IF(NamenSort!B26=\"\",\"zzz\",NamenSort!B26))","v":"zzz"},6,4]
[25,{"$f":"(IF(NamenSort!B27=\"\",\"zzz\",NamenSort!B27))","v":"zzz"},7,1]
[26,{"$f":"(IF(NamenSort!B28=\"\",\"zzz\",NamenSort!B28))","v":"zzz"},7,2]
[27,{"$f":"(IF(NamenSort!B29=\"\",\"zzz\",NamenSort!B29))","v":"zzz"},7,3]
[28,{"$f":"(IF(NamenSort!B30=\"\",\"zzz\",NamenSort!B30))","v":"zzz"},7,4]
[29,{"$f":"(IF(NamenSort!B31=\"\",\"zzz\",NamenSort!B31))","v":"zzz"},8,1]
[30,{"$f":"(IF(NamenSort!B32=\"\",\"zzz\",NamenSort!B32))","v":"zzz"},8,2]
[31,{"$f":"(IF(NamenSort!B33=\"\",\"zzz\",NamenSort!B33))","v":"zzz"},8,3]
[32,{"$f":"(IF(NamenSort!B34=\"\",\"zzz\",NamenSort!B34))","v":"zzz"},8,4]
[33,{"$f":"(IF(NamenSort!B35=\"\",\"zzz\",NamenSort!B35))","v":"zzz"},9,1]
[34,{"$f":"(IF(NamenSort!B36=\"\",\"zzz\",NamenSort!B36))","v":"zzz"},9,2]
[35,{"$f":"(IF(NamenSort!B37=\"\",\"zzz\",NamenSort!B37))","v":"zzz"},9,3]
[36,{"$f":"(IF(NamenSort!B38=\"\",\"zzz\",NamenSort!B38))","v":"zzz"},9,4]
[37,{"$f":"(IF(NamenSort!B39=\"\",\"zzz\",NamenSort!B39))","v":"zzz"},10,1]
[38,{"$f":"(IF(NamenSort!B40=\"\",\"zzz\",NamenSort!B40))","v":"zzz"},10,2]
[39,{"$f":"(IF(NamenSort!B41=\"\",\"zzz\",NamenSort!B41))","v":"zzz"},10,3]
[40,{"$f":"(IF(NamenSort!B42=\"\",\"zzz\",NamenSort!B42))","v":"zzz"},10,4]
[41,{"$f":"(IF(NamenSort!B43=\"\",\"zzz\",NamenSort!B43))","v":"zzz"},11,1]
[42,{"$f":"(IF(NamenSort!B44=\"\",\"zzz\",NamenSort!B44))","v":"zzz"},11,2]
[43,{"$f":"(IF(NamenSort!B45=\"\",\"zzz\",NamenSort!B45))","v":"zzz"},11,3]
[44,{"$f":"(IF(NamenSort!B46=\"\",\"zzz\",NamenSort!B46))","v":"zzz"},11,4]
[45,{"$f":"(IF(NamenSort!B47=\"\",\"zzz\",NamenSort!B47))","v":"zzz"},12,1]
[46,{"$f":"(IF(NamenSort!B48=\"\",\"zzz\",NamenSort!B48))","v":"zzz"},12,2]
[47,{"$f":"(IF(NamenSort!B49=\"\",\"zzz\",NamenSort!B49))","v":"zzz"},12,3]
[48,{"$f":"(IF(NamenSort!B50=\"\",\"zzz\",NamenSort!B50))","v":"zzz"},12,4]
[49,{"$f":"(IF(NamenSort!B51=\"\",\"zzz\",NamenSort!B51))","v":"zzz"},13,1]
[50,{"$f":"(IF(NamenSort!B52=\"\",\"zzz\",NamenSort!B52))","v":"zzz"},13,2]
[51,{"$f":"(IF(NamenSort!B53=\"\",\"zzz\",NamenSort!B53))","v":"zzz"},13,3]
[52,{"$f":"(IF(NamenSort!B54=\"\",\"zzz\",NamenSort!B54))","v":"zzz"},13,4]
[53,{"$f":"(IF(NamenSort!B55=\"\",\"zzz\",NamenSort!B55))","v":"zzz"},14,1]
[54,{"$f":"(IF(NamenSort!B56=\"\",\"zzz\",NamenSort!B56))","v":"zzz"},14,2]
[55,{"$f":"(IF(NamenSort!B57=\"\",\"zzz\",NamenSort!B57))","v":"zzz"},14,3]
[56,{"$f":"(IF(NamenSort!B58=\"\",\"zzz\",NamenSort!B58))","v":"zzz"},14,4]
[57,{"$f":"(IF(NamenSort!B59=\"\",\"zzz\",NamenSort!B59))","v":"zzz"},15,1]
[58,{"$f":"(IF(NamenSort!B60=\"\",\"zzz\",NamenSort!B60))","v":"zzz"},15,2]
[59,{"$f":"(IF(NamenSort!B61=\"\",\"zzz\",NamenSort!B61))","v":"zzz"},15,3]
[60,{"$f":"(IF(NamenSort!B62=\"\",\"zzz\",NamenSort!B62))","v":"zzz"},15,4]
[61,{"$f":"(IF(NamenSort!B63=\"\",\"zzz\",NamenSort!B63))","v":"zzz"},16,1]
[62,{"$f":"(IF(NamenSort!B64=\"\",\"zzz\",NamenSort!B64))","v":"zzz"},16,2]
[63,{"$f":"(IF(NamenSort!B65=\"\",\"zzz\",NamenSort!B65))","v":"zzz"},16,3]
[64,{"$f":"(IF(NamenSort!B66=\"\",\"zzz\",NamenSort!B66))","v":"zzz"},16,4]
[65,{"$f":"(IF(NamenSort!B67=\"\",\"zzz\",NamenSort!B67))","v":"zzz"},17,1]
[66,{"$f":"(IF(NamenSort!B68=\"\",\"zzz\",NamenSort!B68))","v":"zzz"},17,2]
[67,{"$f":"(IF(NamenSort!B69=\"\",\"zzz\",NamenSort!B69))","v":"zzz"},17,3]
[68,{"$f":"(IF(NamenSort!B70=\"\",\"zzz\",NamenSort!B70))","v":"zzz"},17,4]
[69,{"$f":"(IF(NamenSort!B71=\"\",\"zzz\",NamenSort!B71))","v":"zzz"},18,1]
[70,{"$f":"(IF(NamenSort!B72=\"\",\"zzz\",NamenSort!B72))","v":"zzz"},18,2]
[71,{"$f":"(IF(NamenSort!B73=\"\",\"zzz\",NamenSort!B73))","v":"zzz"},18,3]
[72,{"$f":"(IF(NamenSort!B74=\"\",\"zzz\",NamenSort!B74))","v":"zzz"},18,4]
[73,{"$f":"(IF(NamenSort!B75=\"\",\"zzz\",NamenSort!B75))","v":"zzz"},19,1]
[74,{"$f":"(IF(NamenSort!B76=\"\",\"zzz\",NamenSort!B76))","v":"zzz"},19,2]
[75,{"$f":"(IF(NamenSort!B77=\"\",\"zzz\",NamenSort!B77))","v":"zzz"},19,3]
[76,{"$f":"(IF(NamenSort!B78=\"\",\"zzz\",NamenSort!B78))","v":"zzz"},19,4]
[77,{"$f":"(IF(NamenSort!B79=\"\",\"zzz\",NamenSort!B79))","v":"zzz"},20,1]
[78,{"$f":"(IF(NamenSort!B80=\"\",\"zzz\",NamenSort!B80))","v":"zzz"},20,2]
[79,{"$f":"(IF(NamenSort!B81=\"\",\"zzz\",NamenSort!B81))","v":"zzz"},20,3]
[80,{"$f":"(IF(NamenSort!B82=\"\",\"zzz\",NamenSort!B82))","v":"zzz"},20,4]
[81,{"$f":"(IF(NamenSort!B83=\"\",\"zzz\",NamenSort!B83))","v":"zzz"},21,1]
[82,{"$f":"(IF(NamenSort!B84=\"\",\"zzz\",NamenSort!B84))","v":"zzz"},21,2]
[83,{"$f":"(IF(NamenSort!B85=\"\",\"zzz\",NamenSort!B85))","v":"zzz"},21,3]
[84,{"$f":"(IF(NamenSort!B86=\"\",\"zzz\",NamenSort!B86))","v":"zzz"},21,4]
[85,{"$f":"(IF(NamenSort!B87=\"\",\"zzz\",NamenSort!B87))","v":"zzz"},22,1]
[86,{"$f":"(IF(NamenSort!B88=\"\",\"zzz\",NamenSort!B88))","v":"zzz"},22,2]
[87,{"$f":"(IF(NamenSort!B89=\"\",\"zzz\",NamenSort!B89))","v":"zzz"},22,3]
[88,{"$f":"(IF(NamenSort!B90=\"\",\"zzz\",NamenSort!B90))","v":"zzz"},22,4]
[89,{"$f":"(IF(NamenSort!B91=\"\",\"zzz\",NamenSort!B91))","v":"zzz"},23,1]
[90,{"$f":"(IF(NamenSort!B92=\"\",\"zzz\",NamenSort!B92))","v":"zzz"},23,2]
[91,{"$f":"(IF(NamenSort!B93=\"\",\"zzz\",NamenSort!B93))","v":"zzz"},23,3]
[92,{"$f":"(IF(NamenSort!B94=\"\",\"zzz\",NamenSort!B94))","v":"zzz"},23,4]
[93,{"$f":"(IF(NamenSort!B95=\"\",\"zzz\",NamenSort!B95))","v":"zzz"},24,1]
[94,{"$f":"(IF(NamenSort!B96=\"\",\"zzz\",NamenSort!B96))","v":"zzz"},24,2]
[95,{"$f":"(IF(NamenSort!B97=\"\",\"zzz\",NamenSort!B97))","v":"zzz"},24,3]
[96,{"$f":"(IF(NamenSort!B98=\"\",\"zzz\",NamenSort!B98))","v":"zzz"},24,4]

{"sheet":"Runde 1 - 5","index":2,"n_rows":152,"n_cols":38,"rows_kept":152,"cut":false,"hidden":false,"merged":[[79,30,80,30],[117,0,118,0],[117,6,118,6],[117,12,118,12],[117,18,118,18],[117,24,118,24],[117,30,118,30],[114,30,115,35],[3,24,4,24],[3,30,4,30],[41,0,42,0],[41,6,42,6],[41,12,42,12],[41,18,42,18],[41,24,42,24],[41,30,42,30],[76,30,77,35],[114,0,115,5],[114,6,115,11],[114,12,115,17],[114,18,115,23],[114,24,115,29],[79,0,80,0],[79,6,80,6],[79,12,80,12],[79,18,80,18],[76,0,77,5],[76,6,77,11],[76,12,77,17],[76,18,77,23],[76,24,77,29],[79,24,80,24],[0,30,1,35],[38,0,39,5],[38,6,39,11],[38,12,39,17],[38,18,39,23],[38,24,39,29],[38,30,39,35],[0,0,1,5],[0,6,1,11],[0,12,1,17],[0,18,1,23],[0,24,1,29],[3,0,4,0],[3,6,4,6],[3,12,4,12],[3,18,4,18]]}
[{"$f":" \"Tisch 1 \" & A3 & \" \" &A4","v":"Tisch 1 Runde 1"},null,null,null,null,null,{"$f":" \"Tisch 2 \" & A3 & \" \" &A4","v":"Tisch 2 Runde 1"},null,null,null,null,null,{"$f":" \"Tisch 3 \" & A3 & \" \" &A4","v":"Tisch 3 Runde 1"},null,null,null,null,null,{"$f":" \"Tisch 4 \" & A3 & \" \" &A4","v":"Tisch 4 Runde 1"},null,null,null,null,null,{"$f":" \"Tisch 5 \" & A3 & \" \" &A4","v":"Tisch 5 Runde 1"},null,null,null,null,null,{"$f":" \"Tisch 6 \" & A3 & \" \" &A4","v":"Tisch 6 Runde 1"}]
[null,null,null,null,null,null,null,null,null,null,null,null,null,null,null,null,null,null,null,null,null,null,null,null,null,null,null,null,null,null,null,null,null,null,null,null,null," "]
["Runde",1,2,3,4,null,"Runde",1,2,3,4,null,"Runde",1,2,3,4,null,"Runde",1,2,3,4,null,"Runde",1,2,3,4,null,"Runde",1,2,3,4,null,null," "]
[1,{"$f":"NamenSort!B3","v":0},{"$f":"NamenSort!B4","v":0},{"$f":"NamenSort!B5","v":0},{"$f":"NamenSort!B6","v":0},null,{"$f":"$A$4","v":1},{"$f":"NamenSort!B7","v":0},{"$f":"NamenSort!B8","v":0},{"$f":"NamenSort!B9","v":0},{"$f":"NamenSort!B10","v":0},null,{"$f":"$A$4","v":1},{"$f":"NamenSort!B11","v":0},{"$f":"NamenSort!B12","v":0},{"$f":"NamenSort!B13","v":0},{"$f":"NamenSort!B14","v":0},null,{"$f":"$A$4","v":1},{"$f":"NamenSort!B15","v":0},{"$f":"NamenSort!B16","v":0},{"$f":"NamenSort!B17","v":0},{"$f":"NamenSort!B18","v":0},null,{"$f":"$A$4","v":1},{"$f":"NamenSort!B19","v":0},{"$f":"NamenSort!B20","v":0},{"$f":"NamenSort!B21","v":0},{"$f":"NamenSort!B22","v":0},null,{"$f":"$A$4","v":1},{"$f":"NamenSort!B23","v":0},{"$f":"NamenSort!B24","v":0},{"$f":"NamenSort!B25","v":0},{"$f":"NamenSort!B26","v":0}]
[null," "," "," "," ","K",null," "," "," "," ","K",null," "," "," "," ","K",null," "," "," "," ","K",null," "," "," "," ","K",null," "," "," "," ","K"]
["Punkte",{"$f":"IF(SUM(B7:B38)=0,0,SUM(B7:B38))","v":0},{"$f":"IF(SUM(C7:C38)=0,0,SUM(C7:C38))","v":0},0,0,{"$f":"SUM(B6:E6)","v":0},"Punkte",{"$f":"IF(SUM(H7:H38)=0,0,SUM(H7:H38))","v":0},{"$f":"IF(SUM(I7:I38)=0,0,SUM(I7:I38))","v":0},{"$f":"IF(SUM(J7:J38)=0,0,SUM(J7:J38))","v":0},{"$f":"IF(SUM(K7:K38)=0,0,SUM(K7:K38))","v":0},{"$f":"SUM(H6:K6)","v":0},"Punkte",{"$f":"IF(SUM(N7:N38)=0,0,SUM(N7:N38))","v":0},{"$f":"IF(SUM(O7:O38)=0,0,SUM(O7:O38))","v":0},{"$f":"IF(SUM(P7:P38)=0,0,SUM(P7:P38))","v":0},{"$f":"IF(SUM(Q7:Q38)=0,0,SUM(Q7:Q38))","v":0},{"$f":"SUM(N6:Q6)","v":0},"Punkte",{"$f":"IF(SUM(T7:T38)=0,0,SUM(T7:T38))","v":0},{"$f":"IF(SUM(U7:U38)=0,0,SUM(U7:U38))","v":0},{"$f":"IF(SUM(V7:V38)=0,0,SUM(V7:V38))","v":0},{"$f":"IF(SUM(W7:W38)=0,0,SUM(W7:W38))","v":0},{"$f":"SUM(T6:W6)","v":0},"Punkte",{"$f":"IF(SUM(Z7:Z38)=0,0,SUM(Z7:Z38))","v":0},{"$f":"IF(SUM(AA7:AA38)=0,0,SUM(AA7:AA38))","v":0},{"$f":"IF(SUM(AB7:AB38)=0,0,SUM(AB7:AB38))","v":0},{"$f":"IF(SUM(AC7:AC38)=0,0,SUM(AC7:AC38))","v":0},{"$f":"SUM(Z6:AC6)","v":0},"Punkte",{"$f":"IF(SUM(AF7:AF38)=0,0,SUM(AF7:AF38))","v":0},{"$f":"IF(SUM(AG7:AG38)=0,0,SUM(AG7:AG38))","v":0},{"$f":"IF(SUM(AH7:AH38)=0,0,SUM(AH7:AH38))","v":0},{"$f":"IF(SUM(AI7:AI38)=0,0,SUM(AI7:AI38))","v":0},{"$f":"SUM(AF6:AI6)","v":0}]
["Spiel 1",null,null,null,null,{"$f":"SUM(B7:E7)","v":0},"Spiel 1",null,null,null,null,{"$f":"SUM(H7:K7)","v":0},"Spiel 1",null,null,null,null,{"$f":"SUM(N7:Q7)","v":0},"Spiel 1",null,null,null,null,{"$f":"SUM(T7:W7)","v":0},"Spiel 1",null,null,null,null,{"$f":"SUM(Z7:AC7)","v":0},"Spiel 1",null,null,null,null,{"$f":"SUM(AF7:AI7)","v":0}]
["Spiel 2",null,null,null,null,0,"Spiel 2",null,null,null,null,0,"Spiel 2",null,null,null,null,0,"Spiel 2",null,null,null,null,0,"Spiel 2",null,null,null,null,0,"Spiel 2",null,null,null,null,{"$f":"SUM(AF8:AI8)","v":0}]
["Spiel 3",null,null,null,null,0,"Spiel 3",null,null,null,null,0,"Spiel 3",null,null,null,null,0,"Spiel 3",null,null,null,null,0,"Spiel 3",null,null,null,null,0,"Spiel 3",null,null,null,null,0]
["Spiel 4",null,null,null,null,0,"Spiel 4",null,null,null,null,0,"Spiel 4",null,null,null,null,0,"Spiel 4",null,null,null,null,0,"Spiel 4",null,null,null,null,0,"Spiel 4",null,null,null,null,0]
["Spiel 5",null,null,null,null,0,"Spiel 5",null,null,null,null,0,"Spiel 5",null,null,null,null,0,"Spiel 5",null,null,null,null,0,"Spiel 5",null,null,null,null,0,"Spiel 5",null,null,null,null,0]
["Spiel 6",null,null,null,null,0,"Spiel 6",null,null,null,null,0,"Spiel 6",null,null,null,null,0,"Spiel 6",null,null,null,null,0,"Spiel 6",null,null,null,null,0,"Spiel 6",null,null,null,null,0]
["Spiel 7",null,null,null,null,0,"Spiel 7",null,null,null,null,0,"Spiel 7",null,null,null,null,0,"Spiel 7",null,null,null,null,0,"Spiel 7",null,null,null,null,0,"Spiel 7",null,null,null,null,0]
["Spiel 8",null,null,null,null,0,"Spiel 8",null,null,null,null,0,"Spiel 8",null,null,null,null,0,"Spiel 8",null,null,null,null,0,"Spiel 8",null,null,null,null,0,"Spiel 8",null,null,null,null,0]
["Spiel 9",null,null,null,null,0,"Spiel 9",null,null,null,null,0,"Spiel 9",null,null,null,null,0,"Spiel 9",null,null,null,null,0,"Spiel 9",null,null,null,null,0,"Spiel 9",null,null,null,null,0]
["Spiel 10",null,null,null,null,0,"Spiel 10",null,null,null,null,0,"Spiel 10",null,null,null,null,0,"Spiel 10",null,null,null,null,0,"Spiel 10",null,null,null,null,0,"Spiel 10",null,null,null,null,0]
["Spiel 11",null,null,null,null,0,"Spiel 11",null,null,null,null,0,"Spiel 11",null,null,null,null,0,"Spiel 11",null,null,null,null,0,"Spiel 11",null,null,null,null,0,"Spiel 11",null,null,null,null,0]
["Spiel 12",null,null,null,null,0,"Spiel 12",null,null,null,null,0,"Spiel 12",null,null,null,null,0,"Spiel 12",null,null,null,null,0,"Spiel 12",null,null,null,null,0,"Spiel 12",null,null,null,null,0]
["Spiel 13",null,null,null,null,0,"Spiel 13",null,null,null,null,0,"Spiel 13",null,null,null,null,0,"Spiel 13",null,null,null,null,0,"Spiel 13",null,null,null,null,0,"Spiel 13",null,null,null,null,0]
["Spiel 14",null,null,null,null,0,"Spiel 14",null,null,null,null,0,"Spiel 14",null,null,null,null,0,"Spiel 14",null,null,null,null,0,"Spiel 14",null,null,null,null,0,"Spiel 14",null,null,null,null,0]
["Spiel 15",null,null,null,null,0,"Spiel 15",null,null,null,null,0,"Spiel 15",null,null,null,null,0,"Spiel 15",null,null,null,null,0,"Spiel 15",null,null,null,null,0,"Spiel 15",null,null,null,null,0]
["Spiel 16",null,null,null,null,0,"Spiel 16",null,null,null,null,0,"Spiel 16",null,null,null,null,0,"Spiel 16",null,null,null,null,0,"Spiel 16",null,null,null,null,0,"Spiel 16",null,null,null,null,0]
["Spiel 17",null,null,null,null,0,"Spiel 17",null,null,null,null,0,"Spiel 17",null,null,null,null,0,"Spiel 17",null,null,null,null,0,"Spiel 17",null,null,null,null,0,"Spiel 17",null,null,null,null,0]
["Spiel 18",null,null,null,null,0,"Spiel 18",null,null,null,null,0,"Spiel 18",null,null,null,null,0,"Spiel 18",null,null,null,null,0,"Spiel 18",null,null,null,null,0,"Spiel 18",null,null,null,null,0]
["Spiel 19",null,null,null,null,0,"Spiel 19",null,null,null,null,0,"Spiel 19",null,null,null,null,0,"Spiel 19",null,null,null,null,0,"Spiel 19",null,null,null,null,0,"Spiel 19",null,null,null,null,0]
["Spiel 20",null,null,null,null,0,"Spiel 20",null,null,null,null,0,"Spiel 20",null,null,null,null,0,"Spiel 20",null,null,null,null,0,"Spiel 20",null,null,null,null,0,"Spiel 20",null,null,null,null,0]
["Spiel 21",null,null,null,null,0,"Spiel 21",null,null,null,null,0,"Spiel 21",null,null,null,null,0,"Spiel 21",null,null,null,null,0,"Spiel 21",null,null,null,null,0,"Spiel 21",null,null,null,null,0]
["Spiel 22",null,null,null,null,0,"Spiel 22",null,null,null,null,0,"Spiel 22",null,null,null,null,0,"Spiel 22",null,null,null,null,0,"Spiel 22",null,null,null,null,0,"Spiel 22",null,null,null,null,0]
["Spiel 23",null,null,null,null,0,"Spiel 23",null,null,null,null,0,"Spiel 23",null,null,null,null,0,"Spiel 23",null,null,null,null,0,"Spiel 23",null,null,null,null,0,"Spiel 23",null,null,null,null,0]
["Spiel 24",null,null,null,null,0,"Spiel 24",null,null,null,null,0,"Spiel 24",null,null,null,null,0,"Spiel 24",null,null,null,null,0,"Spiel 24",null,null,null,null,0,"Spiel 24",null,null,null,null,0]
["Spiel 25",null,null,null,null,0,"Spiel 25",null,null,null,null,0,"Spiel 25",null,null,null,null,0,"Spiel 25",null,null,null,null,0,"Spiel 25",null,null,null,null,0,"Spiel 25",null,null,null,null,0]
["Spiel 26",null,null,null,null,0,"Spiel 26",null,null,null,null,0,"Spiel 26",null,null,null,null,0,"Spiel 26",null,null,null,null,0,"Spiel 26",null,null,null,null,0,"Spiel 26",null,null,null,null,0]
["Spiel 27",null,null,null,null,0,"Spiel 27",null,null,null,null,0,"Spiel 27",null,null,null,null,0,"Spiel 27",null,null,null,null,0,"Spiel 27",null,null,null,null,0,"Spiel 27",null,null,null,null,0]
["Spiel 28",null,null,null,null,0,"Spiel 28",null,null,null,null,0,"Spiel 28",null,null,null,null,0,"Spiel 28",null,null,null,null,0,"Spiel 28",null,null,null,null,0,"Spiel 28",null,null,null,null,0]
["Spiel 29",null,null,null,null,0,"Spiel 29",null,null,null,null,0,"Spiel 29",null,null,null,null,0,"Spiel 29",null,null,null,null,0,"Spiel 29",null,null,null,null,0,"Spiel 29",null,null,null,null,0]
["Spiel 30",null,null,null,null,0,"Spiel 30",null,null,null,null,0,"Spiel 30",null,null,null,null,0,"Spiel 30",null,null,null,null,0,"Spiel 30",null,null,null,null,0,"Spiel 30",null,null,null,null,0]
["Spiel 31",null,null,null,null,0,"Spiel 31",null,null,null,null,0,"Spiel 31",null,null,null,null,0,"Spiel 31",null,null,null,null,0,"Spiel 31",null,null,null,null,0,"Spiel 31",null,null,null,null,0]
["Spiel 32",null,null,null,null,0,"Spiel 32",null,null,null,null,0,"Spiel 32",null,null,null,null,0,"Spiel 32",null,null,null,null,0,"Spiel 32",null,null,null,null,0,"Spiel 32",null,null,null,null,{"$f":"SUM(AF38:AI38)","v":0}]
[{"$f":" \"Tisch 7 \" & A3 & \" \" &A4","v":"Tisch 7 Runde 1"},null,null,null,null,null,{"$f":" \"Tisch 8 \" & A3 & \" \" &A4","v":"Tisch 8 Runde 1"},null,null,null,null,null,{"$f":" \"Tisch 9 \" & A3 & \" \" &A4","v":"Tisch 9 Runde 1"},null,null,null,null,null,{"$f":" \"Tisch 10 \" & A3 & \" \" &A4","v":"Tisch 10 Runde 1"},null,null,null,null,null,{"$f":" \"Tisch 11 \" & A3 & \" \" &A4","v":"Tisch 11 Runde 1"},null,null,null,null,null,{"$f":" \"Tisch 12 \" & A3 & \" \" &A4","v":"Tisch 12 Runde 1"}]
[]
["Runde",1,2,3,4,null,"Runde",1,2,3,4,null,"Runde",1,2,3,4,null,"Runde",1,2,3,4,null,"Runde",1,2,3,4,null,"Runde",1,2,3,4]
[{"$f":"$A$4","v":1},{"$f":"NamenSort!B27","v":0},{"$f":"NamenSort!B28","v":0},{"$f":"NamenSort!B29","v":0},{"$f":"NamenSort!B30","v":0},null,{"$f":"$A$4","v":1},{"$f":"NamenSort!B31","v":0},{"$f":"NamenSort!B32","v":0},{"$f":"NamenSort!B33","v":0},{"$f":"NamenSort!B34","v":0},null,{"$f":"$A$4","v":1},{"$f":"NamenSort!B35","v":0},{"$f":"NamenSort!B36","v":0},{"$f":"NamenSort!B37","v":0},{"$f":"NamenSort!B38","v":0},null,{"$f":"$A$4","v":1},{"$f":"NamenSort!B39","v":0},{"$f":"NamenSort!B40","v":0},{"$f":"NamenSort!B41","v":0},{"$f":"NamenSort!B42","v":0},null,{"$f":"$A$4","v":1},{"$f":"NamenSort!B43","v":0},{"$f":"NamenSort!B44","v":0},{"$f":"NamenSort!B45","v":0},{"$f":"NamenSort!B46","v":0},null,{"$f":"$A$4","v":1},{"$f":"NamenSort!B47","v":0},{"$f":"NamenSort!B48","v":0},{"$f":"NamenSort!B49","v":0},{"$f":"NamenSort!B50","v":0}]
[null," "," "," "," ","K",null," "," "," "," ","K",null," "," "," "," ","K",null," "," "," "," ","K",null," "," "," "," ","K"]
["Punkte",{"$f":"IF(SUM(B45:B76)=0,0,SUM(B45:B76))","v":0},{"$f":"IF(SUM(C45:C76)=0,0,SUM(C45:C76))","v":0},0,0,{"$f":"SUM(B44:E44)","v":0},"Punkte",{"$f":"IF(SUM(H45:H76)=0,0,SUM(H45:H76))","v":0},{"$f":"IF(SUM(I45:I76)=0,0,SUM(I45:I76))","v":0},{"$f":"IF(SUM(J45:J76)=0,0,SUM(J45:J76))","v":0},{"$f":"IF(SUM(K45:K76)=0,0,SUM(K45:K76))","v":0},{"$f":"SUM(H44:K44)","v":0},"Punkte",{"$f":"IF(SUM(N45:N76)=0,0,SUM(N45:N76))","v":0},{"$f":"IF(SUM(O45:O76)=0,0,SUM(O45:O76))","v":0},{"$f":"IF(SUM(P45:P76)=0,0,SUM(P45:P76))","v":0},{"$f":"IF(SUM(Q45:Q76)=0,0,SUM(Q45:Q76))","v":0},{"$f":"SUM(N44:Q44)","v":0},"Punkte",{"$f":"IF(SUM(T45:T76)=0,0,SUM(T45:T76))","v":0},{"$f":"IF(SUM(U45:U76)=0,0,SUM(U45:U76))","v":0},{"$f":"IF(SUM(V45:V76)=0,0,SUM(V45:V76))","v":0},{"$f":"IF(SUM(W45:W76)=0,0,SUM(W45:W76))","v":0},{"$f":"SUM(T44:W44)","v":0},"Punkte",{"$f":"IF(SUM(Z45:Z76)=0,0,SUM(Z45:Z76))","v":0},{"$f":"IF(SUM(AA45:AA76)=0,0,SUM(AA45:AA76))","v":0},{"$f":"IF(SUM(AB45:AB76)=0,0,SUM(AB45:AB76))","v":0},{"$f":"IF(SUM(AC45:AC76)=0,0,SUM(AC45:AC76))","v":0},{"$f":"SUM(Z44:AC44)","v":0},"Punkte",{"$f":"IF(SUM(AF45:AF76)=0,0,SUM(AF45:AF76))","v":0},{"$f":"IF(SUM(AG45:AG76)=0,0,SUM(AG45:AG76))","v":0},{"$f":"IF(SUM(AH45:AH76)=0,0,SUM(AH45:AH76))","v":0},{"$f":"IF(SUM(AI45:AI76)=0,0,SUM(AI45:AI76))","v":0},"K"]
["Spiel 1",null,null,null,null,{"$f":"SUM(B45:E45)","v":0},"Spiel 1",null,null,null,null,{"$f":"SUM(H45:K45)","v":0},"Spiel 1",null,null,null,null,{"$f":"SUM(N45:Q45)","v":0},"Spiel 1",null,null,null,null,{"$f":"SUM(T45:W45)","v":0},"Spiel 1",null,null,null,null,{"$f":"SUM(Z45:AC45)","v":0},"Spiel 1",null,null,null,null,{"$f":"SUM(AF45:AI45)","v":0}]
["Spiel 2",null,null,null,null,{"$f":"SUM(B46:E46)","v":0},"Spiel 2",null,null,null,null,0,"Spiel 2",null,null,null,null,0,"Spiel 2",null,null,null,null,0,"Spiel 2",null,null,null,null,0,"Spiel 2",null,null,null,null,{"$f":"SUM(AF46:AI46)","v":0}]
["Spiel 3",null,null,null,null,{"$f":"SUM(B47:E47)","v":0},"Spiel 3",null,null,null,null,{"$f":"SUM(H47:K47)","v":0},"Spiel 3",null,null,null,null,{"$f":"SUM(N47:Q47)","v":0},"Spiel 3",null,null,null,null,{"$f":"SUM(T47:W47)","v":0},"Spiel 3",null,null,null,null,{"$f":"SUM(Z47:AC47)","v":0},"Spiel 3",null,null,null,null,0]
["Spiel 4",null,null,null,null,0,"Spiel 4",null,null,null,null,0,"Spiel 4",null,null,null,null,0,"Spiel 4",null,null,null,null,0,"Spiel 4",null,null,null,null,0,"Spiel 4",null,null,null,null,0]
["Spiel 5",null,null,null,null,0,"Spiel 5",null,null,null,null,0,"Spiel 5",null,null,null,null,0,"Spiel 5",null,null,null,null,0,"Spiel 5",null,null,null,null,0,"Spiel 5",null,null,null,null,0]
["Spiel 6",null,null,null,null,0,"Spiel 6",null,null,null,null,0,"Spiel 6",null,null,null,null,0,"Spiel 6",null,null,null,null,0,"Spiel 6",null,null,null,null,0,"Spiel 6",null,null,null,null,0]
["Spiel 7",null,null,null,null,0,"Spiel 7",null,null,null,null,0,"Spiel 7",null,null,null,null,0,"Spiel 7",null,null,null,null,0,"Spiel 7",null,null,null,null,0,"Spiel 7",null,null,null,null,0]
["Spiel 8",null,null,null,null,0,"Spiel 8",null,null,null,null,0,"Spiel 8",null,null,null,null,0,"Spiel 8",null,null,null,null,0,"Spiel 8",null,null,null,null,0,"Spiel 8",null,null,null,null,0]
["Spiel 9",null,null,null,null,0,"Spiel 9",null,null,null,null,0,"Spiel 9",null,null,null,null,0,"Spiel 9",null,null,null,null,0,"Spiel 9",null,null,null,null,0,"Spiel 9",null,null,null,null,0]
["Spiel 10",null,null,null,null,0,"Spiel 10",null,null,null,null,0,"Spiel 10",null,null,null,null,0,"Spiel 10",null,null,null,null,0,"Spiel 10",null,null,null,null,0,"Spiel 10",null,null,null,null,0]
["Spiel 11",null,null,null,null,0,"Spiel 11",null,null,null,null,0,"Spiel 11",null,null,null,null,0,"Spiel 11",null,null,null,null,0,"Spiel 11",null,null,null,null,0,"Spiel 11",null,null,null,null,0]
["Spiel 12",null,null,null,null,0,"Spiel 12",null,null,null,null,0,"Spiel 12",null,null,null,null,0,"Spiel 12",null,null,null,null,0,"Spiel 12",null,null,null,null,0,"Spiel 12",null,null,null,null,0]
["Spiel 13",null,null,null,null,0,"Spiel 13",null,null,null,null,0,"Spiel 13",null,null,null,null,0,"Spiel 13",null,null,null,null,0,"Spiel 13",null,null,null,null,0,"Spiel 13",null,null,null,null,0]
["Spiel 14",null,null,null,null,0,"Spiel 14",null,null,null,null,0,"Spiel 14",null,null,null,null,0,"Spiel 14",null,null,null,null,0,"Spiel 14",null,null,null,null,0,"Spiel 14",null,null,null,null,0]
["Spiel 15",null,null,null,null,0,"Spiel 15",null,null,null,null,0,"Spiel 15",null,null,null,null,0,"Spiel 15",null,null,null,null,0,"Spiel 15",null,null,null,null,0,"Spiel 15",null,null,null,null,0]
["Spiel 16",null,null,null,null,0,"Spiel 16",null,null,null,null,0,"Spiel 16",null,null,null,null,0,"Spiel 16",null,null,null,null,0,"Spiel 16",null,null,null,null,0,"Spiel 16",null,null,null,null,0]
["Spiel 17",null,null,null,null,0,"Spiel 17",null,null,null,null,0,"Spiel 17",null,null,null,null,0,"Spiel 17",null,null,null,null,0,"Spiel 17",null,null,null,null,0,"Spiel 17",null,null,null,null,0]
["Spiel 18",null,null,null,null,0,"Spiel 18",null,null,null,null,0,"Spiel 18",null,null,null,null,0,"Spiel 18",null,null,null,null,0,"Spiel 18",null,null,null,null,0,"Spiel 18",null,null,null,null,0]
["Spiel 19",null,null,null,null,0,"Spiel 19",null,null,null,null,0,"Spiel 19",null,null,null,null,0,"Spiel 19",null,null,null,null,0,"Spiel 19",null,null,null,null,0,"Spiel 19",null,null,null,null,0]
["Spiel 20",null,null,null,null,0,"Spiel 20",null,null,null,null,0,"Spiel 20",null,null,null,null,0,"Spiel 20",null,null,null,null,0,"Spiel 20",null,null,null,null,0,"Spiel 20",null,null,null,null,0]
["Spiel 21",null,null,null,null,0,"Spiel 21",null,null,null,null,0,"Spiel 21",null,null,null,null,0,"Spiel 21",null,null,null,null,0,"Spiel 21",null,null,null,null,0,"Spiel 21",null,null,null,null,0]
["Spiel 22",null,null,null,null,0,"Spiel 22",null,null,null,null,0,"Spiel 22",null,null,null,null,0,"Spiel 22",null,null,null,null,0,"Spiel 22",null,null,null,null,0,"Spiel 22",null,null,null,null,0]
["Spiel 23",null,null,null,null,0,"Spiel 23",null,null,null,null,0,"Spiel 23",null,null,null,null,0,"Spiel 23",null,null,null,null,0,"Spiel 23",null,null,null,null,0,"Spiel 23",null,null,null,null,0]
["Spiel 24",null,null,null,null,0,"Spiel 24",null,null,null,null,0,"Spiel 24",null,null,null,null,0,"Spiel 24",null,null,null,null,0,"Spiel 24",null,null,null,null,0,"Spiel 24",null,null,null,null,0]
["Spiel 25",null,null,null,null,0,"Spiel 25",null,null,null,null,0,"Spiel 25",null,null,null,null,0,"Spiel 25",null,null,null,null,0,"Spiel 25",null,null,null,null,0,"Spiel 25",null,null,null,null,0]
["Spiel 26",null,null,null,null,0,"Spiel 26",null,null,null,null,0,"Spiel 26",null,null,null,null,0,"Spiel 26",null,null,null,null,0,"Spiel 26",null,null,null,null,0,"Spiel 26",null,null,null,null,0]
["Spiel 27",null,null,null,null,0,"Spiel 27",null,null,null,null,0,"Spiel 27",null,null,null,null,0,"Spiel 27",null,null,null,null,0,"Spiel 27",null,null,null,null,0,"Spiel 27",null,null,null,null,0]
["Spiel 28",null,null,null,null,0,"Spiel 28",null,null,null,null,0,"Spiel 28",null,null,null,null,0,"Spiel 28",null,null,null,null,0,"Spiel 28",null,null,null,null,0,"Spiel 28",null,null,null,null,0]
["Spiel 29",null,null,null,null,0,"Spiel 29",null,null,null,null,0,"Spiel 29",null,null,null,null,0,"Spiel 29",null,null,null,null,0,"Spiel 29",null,null,null,null,0,"Spiel 29",null,null,null,null,0]
["Spiel 30",null,null,null,null,0,"Spiel 30",null,null,null,null,0,"Spiel 30",null,null,null,null,0,"Spiel 30",null,null,null,null,0,"Spiel 30",null,null,null,null,0,"Spiel 30",null,null,null,null,0]
["Spiel 31",null,null,null,null,0,"Spiel 31",null,null,null,null,0,"Spiel 31",null,null,null,null,0,"Spiel 31",null,null,null,null,0,"Spiel 31",null,null,null,null,0,"Spiel 31",null,null,null,null,0]
["Spiel 32",null,null,null,null,0,"Spiel 32",null,null,null,null,0,"Spiel 32",null,null,null,null,0,"Spiel 32",null,null,null,null,0,"Spiel 32",null,null,null,null,0,"Spiel 32",null,null,null,null,0]
[{"$f":" \"Tisch 13 \" & A3 & \" \" &A4","v":"Tisch 13 Runde 1"},null,null,null,null,null,{"$f":" \"Tisch 14 \" & A3 & \" \" &A4","v":"Tisch 14 Runde 1"},null,null,null,null,null,{"$f":" \"Tisch 15 \" & A3 & \" \" &A4","v":"Tisch 15 Runde 1"},null,null,null,null,null,{"$f":" \"Tisch 16 \" & A3 & \" \" &A4","v":"Tisch 16 Runde 1"},null,null,null,null,null,{"$f":" \"Tisch 17 \" & A3 & \" \" &A4","v":"Tisch 17 Runde 1"},null,null,null,null,null,{"$f":" \"Tisch 18 \" & A3 & \" \" &A4","v":"Tisch 18 Runde 1"}]
[]
["Runde",1,2,3,4,null,"Runde",1,2,3,4,null,"Runde",1,2,3,4,null,"Runde",1,2,3,4,null,"Runde",1,2,3,4,null,"Runde",1,2,3,4]
[{"$f":"$A$4","v":1},{"$f":"NamenSort!B51","v":0},{"$f":"NamenSort!B52","v":0},{"$f":"NamenSort!B53","v":0},{"$f":"NamenSort!B54","v":0},null,{"$f":"$A$4","v":1},{"$f":"NamenSort!B55","v":0},{"$f":"NamenSort!B56","v":0},{"$f":"NamenSort!B57","v":0},{"$f":"NamenSort!B58","v":0},null,{"$f":"$A$4","v":1},{"$f":"NamenSort!B59","v":0},{"$f":"NamenSort!B60","v":0},{"$f":"NamenSort!B61","v":0},{"$f":"NamenSort!B62","v":0},null,{"$f":"$A$4","v":1},{"$f":"NamenSort!B63","v":0},{"$f":"NamenSort!B64","v":0},{"$f":"NamenSort!B65","v":0},{"$f":"NamenSort!B66","v":0},null,{"$f":"$A$4","v":1},{"$f":"NamenSort!B67","v":0},{"$f":"NamenSort!B68","v":0},{"$f":"NamenSort!B69","v":0},{"$f":"NamenSort!B70","v":0},null,{"$f":"$A$4","v":1},{"$f":"NamenSort!B71","v":0},{"$f":"NamenSort!B72","v":0},{"$f":"NamenSort!B73","v":0},{"$f":"NamenSort!B74","v":0}]
[null," "," "," "," ","K",null," "," "," "," ","K",null," "," "," "," ","K",null," "," "," "," ","K",null," "," "," "," ","K",null,null,null,null,null,"K"]
["Punkte",{"$f":"IF(SUM(B83:B114)=0,0,SUM(B83:B114))","v":0},{"$f":"IF(SUM(C83:C114)=0,0,SUM(C83:C114))","v":0},0,0,{"$f":"SUM(B82:E82)","v":0},"Punkte",{"$f":"IF(SUM(H83:H114)=0,0,SUM(H83:H114))","v":0},{"$f":"IF(SUM(I83:I114)=0,0,SUM(I83:I114))","v":0},{"$f":"IF(SUM(J83:J114)=0,0,SUM(J83:J114))","v":0},{"$f":"IF(SUM(K83:K114)=0,0,SUM(K83:K114))","v":0},{"$f":"SUM(H82:K82)","v":0},"Punkte",{"$f":"IF(SUM(N83:N114)=0,0,SUM(N83:N114))","v":0},{"$f":"IF(SUM(O83:O114)=0,0,SUM(O83:O114))","v":0},{"$f":"IF(SUM(P83:P114)=0,0,SUM(P83:P114))","v":0},{"$f":"IF(SUM(Q83:Q114)=0,0,SUM(Q83:Q114))","v":0},{"$f":"SUM(N82:Q82)","v":0},"Punkte",{"$f":"IF(SUM(T83:T114)=0,0,SUM(T83:T114))","v":0},{"$f":"IF(SUM(U83:U114)=0,0,SUM(U83:U114))","v":0},{"$f":"IF(SUM(V83:V114)=0,0,SUM(V83:V114))","v":0},{"$f":"IF(SUM(W83:W114)=0,0,SUM(W83:W114))","v":0},{"$f":"SUM(T82:W82)","v":0},"Punkte",{"$f":"IF(SUM(Z83:Z114)=0,0,SUM(Z83:Z114))","v":0},{"$f":"IF(SUM(AA83:AA114)=0,0,SUM(AA83:AA114))","v":0},{"$f":"IF(SUM(AB83:AB114)=0,0,SUM(AB83:AB114))","v":0},{"$f":"IF(SUM(AC83:AC114)=0,0,SUM(AC83:AC114))","v":0},{"$f":"SUM(Z82:AC82)","v":0},"Punkte",{"$f":"IF(SUM(AF83:AF114)=0,0,SUM(AF83:AF114))","v":0},{"$f":"IF(SUM(AG83:AG114)=0,0,SUM(AG83:AG114))","v":0},{"$f":"IF(SUM(AH83:AH114)=0,0,SUM(AH83:AH114))","v":0},{"$f":"IF(SUM(AI83:AI114)=0,0,SUM(AI83:AI114))","v":0},{"$f":"SUM(AF82:AI82)","v":0}]
["Spiel 1",null,null,null,null,{"$f":"SUM(B83:E83)","v":0},"Spiel 1",null,null,null,null,{"$f":"SUM(H83:K83)","v":0},"Spiel 1",null,null,null,null,{"$f":"SUM(N83:Q83)","v":0},"Spiel 1",null,null,null,null,{"$f":"SUM(T83:W83)","v":0},"Spiel 1",null,null,null,null,{"$f":"SUM(Z83:AC83)","v":0},"Spiel 1",null,null,null,null,{"$f":"SUM(AF83:AI83)","v":0}]
["Spiel 2",null,null,null,null,0,"Spiel 2",null,null,null,null,0,"Spiel 2",null,null,null,null,0,"Spiel 2",null,null,null,null,0,"Spiel 2",null,null,null,null,0,"Spiel 2",null,null,null,null,{"$f":"SUM(AF84:AI84)","v":0}]
["Spiel 3",null,null,null,null,{"$f":"SUM(B85:E85)","v":0},"Spiel 3",null,null,null,null,{"$f":"SUM(H85:K85)","v":0},"Spiel 3",null,null,null,null,{"$f":"SUM(N85:Q85)","v":0},"Spiel 3",null,null,null,null,{"$f":"SUM(T85:W85)","v":0},"Spiel 3",null,null,null,null,{"$f":"SUM(Z85:AC85)","v":0},"Spiel 3",null,null,null,null,0]
["Spiel 4",null,null,null,null,0,"Spiel 4",null,null,null,null,0,"Spiel 4",null,null,null,null,0,"Spiel 4",null,null,null,null,0,"Spiel 4",null,null,null,null,0,"Spiel 4",null,null,null,null,0]
["Spiel 5",null,null,null,null,0,"Spiel 5",null,null,null,null,0,"Spiel 5",null,null,null,null,0,"Spiel 5",null,null,null,null,0,"Spiel 5",null,null,null,null,0,"Spiel 5",null,null,null,null,0]
["Spiel 6",null,null,null,null,0,"Spiel 6",null,null,null,null,0,"Spiel 6",null,null,null,null,0,"Spiel 6",null,null,null,null,0,"Spiel 6",null,null,null,null,0,"Spiel 6",null,null,null,null,0]
["Spiel 7",null,null,null,null,0,"Spiel 7",null,null,null,null,0,"Spiel 7",null,null,null,null,0,"Spiel 7",null,null,null,null,0,"Spiel 7",null,null,null,null,0,"Spiel 7",null,null,null,null,0]
["Spiel 8",null,null,null,null,0,"Spiel 8",null,null,null,null,0,"Spiel 8",null,null,null,null,0,"Spiel 8",null,null,null,null,0,"Spiel 8",null,null,null,null,0,"Spiel 8",null,null,null,null,0]
["Spiel 9",null,null,null,null,0,"Spiel 9",null,null,null,null,0,"Spiel 9",null,null,null,null,0,"Spiel 9",null,null,null,null,0,"Spiel 9",null,null,null,null,0,"Spiel 9",null,null,null,null,0]
["Spiel 10",null,null,null,null,0,"Spiel 10",null,null,null,null,0,"Spiel 10",null,null,null,null,0,"Spiel 10",null,null,null,null,0,"Spiel 10",null,null,null,null,0,"Spiel 10",null,null,null,null,0]
["Spiel 11",null,null,null,null,0,"Spiel 11",null,null,null,null,0,"Spiel 11",null,null,null,null,0,"Spiel 11",null,null,null,null,0,"Spiel 11",null,null,null,null,0,"Spiel 11",null,null,null,null,0]
["Spiel 12",null,null,null,null,0,"Spiel 12",null,null,null,null,0,"Spiel 12",null,null,null,null,0,"Spiel 12",null,null,null,null,0,"Spiel 12",null,null,null,null,0,"Spiel 12",null,null,null,null,0]
["Spiel 13",null,null,null,null,0,"Spiel 13",null,null,null,null,0,"Spiel 13",null,null,null,null,0,"Spiel 13",null,null,null,null,0,"Spiel 13",null,null,null,null,0,"Spiel 13",null,null,null,null,0]
["Spiel 14",null,null,null,null,0,"Spiel 14",null,null,null,null,0,"Spiel 14",null,null,null,null,0,"Spiel 14",null,null,null,null,0,"Spiel 14",null,null,null,null,0,"Spiel 14",null,null,null,null,0]
["Spiel 15",null,null,null,null,0,"Spiel 15",null,null,null,null,0,"Spiel 15",null,null,null,null,0,"Spiel 15",null,null,null,null,0,"Spiel 15",null,null,null,null,0,"Spiel 15",null,null,null,null,0]
["Spiel 16",null,null,null,null,0,"Spiel 16",null,null,null,null,0,"Spiel 16",null,null,null,null,0,"Spiel 16",null,null,null,null,0,"Spiel 16",null,null,null,null,0,"Spiel 16",null,null,null,null,0]
["Spiel 17",null,null,null,null,0,"Spiel 17",null,null,null,null,0,"Spiel 17",null,null,null,null,0,"Spiel 17",null,null,null,null,0,"Spiel 17",null,null,null,null,0,"Spiel 17",null,null,null,null,0]
["Spiel 18",null,null,null,null,0,"Spiel 18",null,null,null,null,0,"Spiel 18",null,null,null,null,0,"Spiel 18",null,null,null,null,0,"Spiel 18",null,null,null,null,0,"Spiel 18",null,null,null,null,0]
["Spiel 19",null,null,null,null,0,"Spiel 19",null,null,null,null,0,"Spiel 19",null,null,null,null,0,"Spiel 19",null,null,null,null,0,"Spiel 19",null,null,null,null,0,"Spiel 19",null,null,null,null,0]
["Spiel 20",null,null,null,null,0,"Spiel 20",null,null,null,null,0,"Spiel 20",null,null,null,null,0,"Spiel 20",null,null,null,null,0,"Spiel 20",null,null,null,null,0,"Spiel 20",null,null,null,null,0]
["Spiel 21",null,null,null,null,0,"Spiel 21",null,null,null,null,0,"Spiel 21",null,null,null,null,0,"Spiel 21",null,null,null,null,0,"Spiel 21",null,null,null,null,0,"Spiel 21",null,null,null,null,0]
["Spiel 22",null,null,null,null,0,"Spiel 22",null,null,null,null,0,"Spiel 22",null,null,null,null,0,"Spiel 22",null,null,null,null,0,"Spiel 22",null,null,null,null,0,"Spiel 22",null,null,null,null,0]
["Spiel 23",null,null,null,null,0,"Spiel 23",null,null,null,null,0,"Spiel 23",null,null,null,null,0,"Spiel 23",null,null,null,null,0,"Spiel 23",null,null,null,null,0,"Spiel 23",null,null,null,null,0]
["Spiel 24",null,null,null,null,0,"Spiel 24",null,null,null,null,0,"Spiel 24",null,null,null,null,0,"Spiel 24",null,null,null,null,0,"Spiel 24",null,null,null,null,0,"Spiel 24",null,null,null,null,0]
["Spiel 25",null,null,null,null,0,"Spiel 25",null,null,null,null,0,"Spiel 25",null,null,null,null,0,"Spiel 25",null,null,null,null,0,"Spiel 25",null,null,null,null,0,"Spiel 25",null,null,null,null,0]
["Spiel 26",null,null,null,null,0,"Spiel 26",null,null,null,null,0,"Spiel 26",null,null,null,null,0,"Spiel 26",null,null,null,null,0,"Spiel 26",null,null,null,null,0,"Spiel 26",null,null,null,null,0]
["Spiel 27",null,null,null,null,0,"Spiel 27",null,null,null,null,0,"Spiel 27",null,null,null,null,0,"Spiel 27",null,null,null,null,0,"Spiel 27",null,null,null,null,0,"Spiel 27",null,null,null,null,0]
["Spiel 28",null,null,null,null,0,"Spiel 28",null,null,null,null,0,"Spiel 28",null,null,null,null,0,"Spiel 28",null,null,null,null,0,"Spiel 28",null,null,null,null,0,"Spiel 28",null,null,null,null,0]
["Spiel 29",null,null,null,null,0,"Spiel 29",null,null,null,null,0,"Spiel 29",null,null,null,null,0,"Spiel 29",null,null,null,null,0,"Spiel 29",null,null,null,null,0,"Spiel 29",null,null,null,null,0]
["Spiel 30",null,null,null,null,0,"Spiel 30",null,null,null,null,0,"Spiel 30",null,null,null,null,0,"Spiel 30",null,null,null,null,0,"Spiel 30",null,null,null,null,0,"Spiel 30",null,null,null,null,0]
["Spiel 31",null,null,null,null,0,"Spiel 31",null,null,null,null,0,"Spiel 31",null,null,null,null,0,"Spiel 31",null,null,null,null,0,"Spiel 31",null,null,null,null,0,"Spiel 31",null,null,null,null,0]
["Spiel 32",null,null,null,null,0,"Spiel 32",null,null,null,null,0,"Spiel 32",null,null,null,null,0,"Spiel 32",null,null,null,null,0,"Spiel 32",null,null,null,null,0,"Spiel 32",null,null,null,null,0]
[{"$f":" \"Tisch 19 \" & A3 & \" \" &A4","v":"Tisch 19 Runde 1"},null,null,null,null,null,{"$f":" \"Tisch 20 \" & A3 & \" \" &A4","v":"Tisch 20 Runde 1"},null,null,null,null,null,{"$f":" \"Tisch 21 \" & A3 & \" \" &A4","v":"Tisch 21 Runde 1"},null,null,null,null,null,{"$f":" \"Tisch 22 \" & A3 & \" \" &A4","v":"Tisch 22 Runde 1"},null,null,null,null,null,{"$f":" \"Tisch 23 \" & A3 & \" \" &A4","v":"Tisch 23 Runde 1"},null,null,null,null,null,{"$f":" \"Tisch 24 \" & A3 & \" \" &A4","v":"Tisch 24 Runde 1"}]
[]
["Runde",1,2,3,4,null,"Runde",1,2,3,4,null,"Runde",1,2,3,4,null,"Runde",1,2,3,4,null,"Runde",1,2,3,4,null,"Runde",1,2,3,4]
[{"$f":"$A$4","v":1},{"$f":"NamenSort!B75","v":0},{"$f":"NamenSort!B76","v":0},{"$f":"NamenSort!B77","v":0},{"$f":"NamenSort!B78","v":0},null,{"$f":"$A$4","v":1},{"$f":"NamenSort!B79","v":0},{"$f":"NamenSort!B80","v":0},{"$f":"NamenSort!B81","v":0},{"$f":"NamenSort!B82","v":0},null,{"$f":"$A$4","v":1},{"$f":"NamenSort!B83","v":0},{"$f":"NamenSort!B84","v":0},{"$f":"NamenSort!B85","v":0},{"$f":"NamenSort!B86","v":0},null,{"$f":"$A$4","v":1},{"$f":"NamenSort!B87","v":0},{"$f":"NamenSort!B88","v":0},{"$f":"NamenSort!B89","v":0},{"$f":"NamenSort!B90","v":0},null,{"$f":"$A$4","v":1},{"$f":"NamenSort!B91","v":0},{"$f":"NamenSort!B92","v":0},{"$f":"NamenSort!B93","v":0},{"$f":"NamenSort!B94","v":0},null,{"$f":"$A$4","v":1},{"$f":"NamenSort!B95","v":0},{"$f":"NamenSort!B96","v":0},{"$f":"NamenSort!B97","v":0},{"$f":"NamenSort!B98","v":0}]
[null," "," "," "," ","K",null," "," "," "," ","K",null," "," "," "," ","K",null," "," "," "," ","K",null," "," "," "," ","K",null," "," "," "," ","K"]
["Punkte",{"$f":"IF(SUM(B121:B152)=0,0,SUM(B121:B152))","v":0},{"$f":"IF(SUM(C121:C152)=0,0,SUM(C121:C152))","v":0},0,0,{"$f":"SUM(B120:E120)","v":0},"Punkte",{"$f":"IF(SUM(H121:H152)=0,0,SUM(H121:H152))","v":0},{"$f":"IF(SUM(I121:I152)=0,0,SUM(I121:I152))","v":0},{"$f":"IF(SUM(J121:J152)=0,0,SUM(J121:J152))","v":0},{"$f":"IF(SUM(K121:K152)=0,0,SUM(K121:K152))","v":0},{"$f":"SUM(H120:K120)","v":0},"Punkte",{"$f":"IF(SUM(N121:N152)=0,0,SUM(N121:N152))","v":0},{"$f":"IF(SUM(O121:O152)=0,0,SUM(O121:O152))","v":0},{"$f":"IF(SUM(P121:P152)=0,0,SUM(P121:P152))","v":0},{"$f":"IF(SUM(Q121:Q152)=0,0,SUM(Q121:Q152))","v":0},{"$f":"SUM(N120:Q120)","v":0},"Punkte",{"$f":"IF(SUM(T121:T152)=0,0,SUM(T121:T152))","v":0},{"$f":"IF(SUM(U121:U152)=0,0,SUM(U121:U152))","v":0},{"$f":"IF(SUM(V121:V152)=0,0,SUM(V121:V152))","v":0},{"$f":"IF(SUM(W121:W152)=0,0,SUM(W121:W152))","v":0},{"$f":"SUM(T120:W120)","v":0},"Punkte",{"$f":"IF(SUM(Z121:Z152)=0,0,SUM(Z121:Z152))","v":0},{"$f":"IF(SUM(AA121:AA152)=0,0,SUM(AA121:AA152))","v":0},{"$f":"IF(SUM(AB121:AB152)=0,0,SUM(AB121:AB152))","v":0},{"$f":"IF(SUM(AC121:AC152)=0,0,SUM(AC121:AC152))","v":0},{"$f":"SUM(Z120:AC120)","v":0},"Punkte",{"$f":"IF(SUM(AF121:AF152)=0,0,SUM(AF121:AF152))","v":0},{"$f":"IF(SUM(AG121:AG152)=0,0,SUM(AG121:AG152))","v":0},{"$f":"IF(SUM(AH121:AH152)=0,0,SUM(AH121:AH152))","v":0},{"$f":"IF(SUM(AI121:AI152)=0,0,SUM(AI121:AI152))","v":0},{"$f":"SUM(AF120:AI120)","v":0}]
["Spiel 1",null,null,null,null,{"$f":"SUM(B121:E121)","v":0},"Spiel 1",null,null,null,null,{"$f":"SUM(H121:K121)","v":0},"Spiel 1",null,null,null,null,{"$f":"SUM(N121:Q121)","v":0},"Spiel 1",null,null,null,null,{"$f":"SUM(T121:W121)","v":0},"Spiel 1",null,null,null,null,{"$f":"SUM(Z121:AC121)","v":0},"Spiel 1",null,null,null,null,{"$f":"SUM(AF121:AI121)","v":0}]
["Spiel 2",null,null,null,null,0,"Spiel 2",null,null,null,null,0,"Spiel 2",null,null,null,null,0,"Spiel 2",null,null,null,null,0,"Spiel 2",null,null,null,null,0,"Spiel 2",null,null,null,null,{"$f":"SUM(AF122:AI122)","v":0}]
["Spiel 3",null,null,null,null,{"$f":"SUM(B123:E123)","v":0},"Spiel 3",null,null,null,null,{"$f":"SUM(H123:K123)","v":0},"Spiel 3",null,null,null,null,{"$f":"SUM(N123:Q123)","v":0},"Spiel 3",null,null,null,null,{"$f":"SUM(T123:W123)","v":0},"Spiel 3",null,null,null,null,{"$f":"SUM(Z123:AC123)","v":0},"Spiel 3",null,null,null,null,0]
["Spiel 4",null,null,null,null,0,"Spiel 4",null,null,null,null,0,"Spiel 4",null,null,null,null,0,"Spiel 4",null,null,null,null,0,"Spiel 4",null,null,null,null,0,"Spiel 4",null,null,null,null,0]
["Spiel 5",null,null,null,null,0,"Spiel 5",null,null,null,null,0,"Spiel 5",null,null,null,null,0,"Spiel 5",null,null,null,null,0,"Spiel 5",null,null,null,null,0,"Spiel 5",null,null,null,null,0]
["Spiel 6",null,null,null,null,0,"Spiel 6",null,null,null,null,0,"Spiel 6",null,null,null,null,0,"Spiel 6",null,null,null,null,0,"Spiel 6",null,null,null,null,0,"Spiel 6",null,null,null,null,0]
["Spiel 7",null,null,null,null,0,"Spiel 7",null,null,null,null,0,"Spiel 7",null,null,null,null,0,"Spiel 7",null,null,null,null,0,"Spiel 7",null,null,null,null,0,"Spiel 7",null,null,null,null,0]
["Spiel 8",null,null,null,null,0,"Spiel 8",null,null,null,null,0,"Spiel 8",null,null,null,null,0,"Spiel 8",null,null,null,null,0,"Spiel 8",null,null,null,null,0,"Spiel 8",null,null,null,null,0]
["Spiel 9",null,null,null,null,0,"Spiel 9",null,null,null,null,0,"Spiel 9",null,null,null,null,0,"Spiel 9",null,null,null,null,0,"Spiel 9",null,null,null,null,0,"Spiel 9",null,null,null,null,0]
["Spiel 10",null,null,null,null,0,"Spiel 10",null,null,null,null,0,"Spiel 10",null,null,null,null,0,"Spiel 10",null,null,null,null,0,"Spiel 10",null,null,null,null,0,"Spiel 10",null,null,null,null,0]
["Spiel 11",null,null,null,null,0,"Spiel 11",null,null,null,null,0,"Spiel 11",null,null,null,null,0,"Spiel 11",null,null,null,null,0,"Spiel 11",null,null,null,null,0,"Spiel 11",null,null,null,null,0]
["Spiel 12",null,null,null,null,0,"Spiel 12",null,null,null,null,0,"Spiel 12",null,null,null,null,0,"Spiel 12",null,null,null,null,0,"Spiel 12",null,null,null,null,0,"Spiel 12",null,null,null,null,0]
["Spiel 13",null,null,null,null,0,"Spiel 13",null,null,null,null,0,"Spiel 13",null,null,null,null,0,"Spiel 13",null,null,null,null,0,"Spiel 13",null,null,null,null,0,"Spiel 13",null,null,null,null,0]
["Spiel 14",null,null,null,null,0,"Spiel 14",null,null,null,null,0,"Spiel 14",null,null,null,null,0,"Spiel 14",null,null,null,null,0,"Spiel 14",null,null,null,null,0,"Spiel 14",null,null,null,null,0]
["Spiel 15",null,null,null,null,0,"Spiel 15",null,null,null,null,0,"Spiel 15",null,null,null,null,0,"Spiel 15",null,null,null,null,0,"Spiel 15",null,null,null,null,0,"Spiel 15",null,null,null,null,0]
["Spiel 16",null,null,null,null,0,"Spiel 16",null,null,null,null,0,"Spiel 16",null,null,null,null,0,"Spiel 16",null,null,null,null,0,"Spiel 16",null,null,null,null,0,"Spiel 16",null,null,null,null,0]
["Spiel 17",null,null,null,null,0,"Spiel 17",null,null,null,null,0,"Spiel 17",null,null,null,null,0,"Spiel 17",null,null,null,null,0,"Spiel 17",null,null,null,null,0,"Spiel 17",null,null,null,null,0]
["Spiel 18",null,null,null,null,0,"Spiel 18",null,null,null,null,0,"Spiel 18",null,null,null,null,0,"Spiel 18",null,null,null,null,0,"Spiel 18",null,null,null,null,0,"Spiel 18",null,null,null,null,0]
["Spiel 19",null,null,null,null,0,"Spiel 19",null,null,null,null,0,"Spiel 19",null,null,null,null,0,"Spiel 19",null,null,null,null,0,"Spiel 19",null,null,null,null,0,"Spiel 19",null,null,null,null,0]
["Spiel 20",null,null,null,null,0,"Spiel 20",null,null,null,null,0,"Spiel 20",null,null,null,null,0,"Spiel 20",null,null,null,null,0,"Spiel 20",null,null,null,null,0,"Spiel 20",null,null,null,null,0]
["Spiel 21",null,null,null,null,0,"Spiel 21",null,null,null,null,0,"Spiel 21",null,null,null,null,0,"Spiel 21",null,null,null,null,0,"Spiel 21",null,null,null,null,0,"Spiel 21",null,null,null,null,0]
["Spiel 22",null,null,null,null,0,"Spiel 22",null,null,null,null,0,"Spiel 22",null,null,null,null,0,"Spiel 22",null,null,null,null,0,"Spiel 22",null,null,null,null,0,"Spiel 22",null,null,null,null,0]
["Spiel 23",null,null,null,null,0,"Spiel 23",null,null,null,null,0,"Spiel 23",null,null,null,null,0,"Spiel 23",null,null,null,null,0,"Spiel 23",null,null,null,null,0,"Spiel 23",null,null,null,null,0]
["Spiel 24",null,null,null,null,0,"Spiel 24",null,null,null,null,0,"Spiel 24",null,null,null,null,0,"Spiel 24",null,null,null,null,0,"Spiel 24",null,null,null,null,0,"Spiel 24",null,null,null,null,0]
["Spiel 25",null,null,null,null,0,"Spiel 25",null,null,null,null,0,"Spiel 25",null,null,null,null,0,"Spiel 25",null,null,null,null,0,"Spiel 25",null,null,null,null,0,"Spiel 25",null,null,null,null,0]
["Spiel 26",null,null,null,null,0,"Spiel 26",null,null,null,null,0,"Spiel 26",null,null,null,null,0,"Spiel 26",null,null,null,null,0,"Spiel 26",null,null,null,null,0,"Spiel 26",null,null,null,null,0]
["Spiel 27",null,null,null,null,0,"Spiel 27",null,null,null,null,0,"Spiel 27",null,null,null,null,0,"Spiel 27",null,null,null,null,0,"Spiel 27",null,null,null,null,0,"Spiel 27",null,null,null,null,0]
["Spiel 28",null,null,null,null,0,"Spiel 28",null,null,null,null,0,"Spiel 28",null,null,null,null,0,"Spiel 28",null,null,null,null,0,"Spiel 28",null,null,null,null,0,"Spiel 28",null,null,null,null,0]
["Spiel 29",null,null,null,null,0,"Spiel 29",null,null,null,null,0,"Spiel 29",null,null,null,null,0,"Spiel 29",null,null,null,null,0,"Spiel 29",null,null,null,null,0,"Spiel 29",null,null,null,null,0]
["Spiel 30",null,null,null,null,0,"Spiel 30",null,null,null,null,0,"Spiel 30",null,null,null,null,0,"Spiel 30",null,null,null,null,0,"Spiel 30",null,null,null,null,0,"Spiel 30",null,null,null,null,0]
["Spiel 31",null,null,null,null,0,"Spiel 31",null,null,null,null,0,"Spiel 31",null,null,null,null,0,"Spiel 31",null,null,null,null,0,"Spiel 31",null,null,null,null,0,"Spiel 31",null,null,null,null,0]
["Spiel 32",null,null,null,null,0,"Spiel 32",null,null,null,null,0,"Spiel 32",null,null,null,null,0,"Spiel 32",null,null,null,null,0,"Spiel 32",null,null,null,null,0,"Spiel 32",null,null,null,null,0]

{"sheet":"GESAMTTABELLE","index":3,"n_rows":102,"n_cols":22,"rows_kept":102,"cut":false,"hidden":true,"merged":[]}
[null,"       unsortiertes"]
[null,"Ergebnis","der",null,null,"Runde 1",null,null,"Runde 2",null,null,"Runde 3",null,null,"Runde 4",null,null,"Runde 5",null,null,"     Derzeitiger Spielstand"]
[null,"jeweiligen ","Runde",null,null,"vorsortiert",null,null,"vorsortiert",null,null,"vorsortiert",null,null,"vorsortiert",null,null,"vorsortiert",null,null,"GESAMT","vorsortiert"]
[null,"Name","Punkte",null,null,"Name","Punkte",null,"Name","Punkte",null,"Name","Punkte",null,"Name","Punkte",null,"Name","Punkte",null,"PUNKTE","NAME"]
[null,{"$f":"'Runde 1 - 5'!B4","v":0},{"$f":"'Runde 1 - 5'!B6","v":0},null,null,null,null,null,null,null,null,null,null,null,null,null,null,null,null,null,{"$f":"IF(ISERROR(G5+J5+M5+P5+S5),-9999999,IF(G5+J5+M5+P5+S5=\"\",-9999999,IF(F5=0,-9999999,G5+J5+M5+P5+S5)))","v":-9999999},{"$f":"IF(F5=0,\"\",F5)","v":""}]
[null,{"$f":"'Runde 1 - 5'!C4","v":0},{"$f":"'Runde 1 - 5'!C6","v":0},null,null,null,null,null,null,null,null,null,null,null,null,null,null,null,null,null,{"$f":"IF(ISERROR(G6+J6+M6+P6+S6),-9999999,IF(G6+J6+M6+P6+S6=\"\",-9999999,IF(F6=0,-9999999,G6+J6+M6+P6+S6)))","v":-9999999},{"$f":"IF(F6=0,\"\",F6)","v":""}]
[null,{"$f":"'Runde 1 - 5'!D4","v":0},{"$f":"'Runde 1 - 5'!D6","v":0},null,null,null,null,null,null,null,null,null,null,null,null,null,null,null,null,null,-9999999,""]
[null,{"$f":"'Runde 1 - 5'!E4","v":0},{"$f":"'Runde 1 - 5'!E6","v":0},null,null,null,null,null,null,null,null,null,null,null,null,null,null,null,null,null,-9999999,""]
[null,{"$f":"'Runde 1 - 5'!H4","v":0},{"$f":"'Runde 1 - 5'!H6","v":0},null,null,null,null,null,null,null,null,null,null,null,null,null,null,null,null,null,-9999999,""]
[null,{"$f":"'Runde 1 - 5'!I4","v":0},{"$f":"'Runde 1 - 5'!I6","v":0},null,null,null,null,null,null,null,null,null,null,null,null,null,null,null,null,null,-9999999,""]
[null,{"$f":"'Runde 1 - 5'!J4","v":0},{"$f":"'Runde 1 - 5'!J6","v":0},null,null,null,null,null,null,null,null,null,null,null,null,null,null,null,null,null,-9999999,""]
[null,{"$f":"'Runde 1 - 5'!K4","v":0},{"$f":"'Runde 1 - 5'!K6","v":0},null,null,null,null,null,null,null,null,null,null,null,null,null,null,null,null,null,-9999999,""]
[null,{"$f":"'Runde 1 - 5'!N4","v":0},{"$f":"'Runde 1 - 5'!N6","v":0},null,null,null,null,null,null,null,null,null,null,null,null,null,null,null,null,null,-9999999,""]
[null,{"$f":"'Runde 1 - 5'!O4","v":0},{"$f":"'Runde 1 - 5'!O6","v":0},null,null,null,null,null,null,null,null,null,null,null,null,null,null,null,null,null,-9999999,""]
[null,{"$f":"'Runde 1 - 5'!P4","v":0},{"$f":"'Runde 1 - 5'!P6","v":0},null,null,null,null,null,null,null,null,null,null,null,null,null,null,null,null,null,-9999999,""]
[null,{"$f":"'Runde 1 - 5'!Q4","v":0},{"$f":"'Runde 1 - 5'!Q6","v":0},null,null,null,null,null,null,null,null,null,null,null,null,null,null,null,null,null,-9999999,""]
[null,{"$f":"'Runde 1 - 5'!T4","v":0},{"$f":"'Runde 1 - 5'!T6","v":0},null,null,null,null,null,null,null,null,null,null,null,null,null,null,null,null,null,-9999999,""]
[null,{"$f":"'Runde 1 - 5'!U4","v":0},{"$f":"'Runde 1 - 5'!U6","v":0},null,null,null,null,null,null,null,null,null,null,null,null,null,null,null,null,null,-9999999,""]
[null,{"$f":"'Runde 1 - 5'!V4","v":0},{"$f":"'Runde 1 - 5'!V6","v":0},null,null,null,null,null,null,null,null,null,null,null,null,null,null,null,null,null,-9999999,""]
[null,{"$f":"'Runde 1 - 5'!W4","v":0},{"$f":"'Runde 1 - 5'!W6","v":0},null,null,null,null,null,null,null,null,null,null,null,null,null,null,null,null,null,-9999999,""]
[null,{"$f":"'Runde 1 - 5'!Z4","v":0},{"$f":"'Runde 1 - 5'!Z6","v":0},null,null,null,null,null,null,null,null,null,null,null,null,null,null,null,null,null,-9999999,""]
[null,{"$f":"'Runde 1 - 5'!AA4","v":0},{"$f":"'Runde 1 - 5'!AA6","v":0},null,null,null,null,null,null,null,null,null,null,null,null,null,null,null,null,null,-9999999,""]
[null,{"$f":"'Runde 1 - 5'!AB4","v":0},{"$f":"'Runde 1 - 5'!AB6","v":0},null,null,null,null,null,null,null,null,null,null,null,null,null,null,null,null,null,-9999999,""]
[null,{"$f":"'Runde 1 - 5'!AC4","v":0},{"$f":"'Runde 1 - 5'!AC6","v":0},null,null,null,null,null,null,null,null,null,null,null,null,null,null,null,null,null,-9999999,""]
[null,{"$f":"'Runde 1 - 5'!AF4","v":0},{"$f":"'Runde 1 - 5'!AF6","v":0},null,null,null,null,null,null,null,null,null,null,null,null,null,null,null,null,null,-9999999,""]
[null,{"$f":"'Runde 1 - 5'!AG4","v":0},{"$f":"'Runde 1 - 5'!AG6","v":0},null,null,null,null,null,null,null,null,null,null,null,null,null,null,null,null,null,-9999999,""]
[null,{"$f":"'Runde 1 - 5'!AH4","v":0},{"$f":"'Runde 1 - 5'!AH6","v":0},null,null,null,null,null,null,null,null,null,null,null,null,null,null,null,null,null,-9999999,""]
[null,{"$f":"'Runde 1 - 5'!AI4","v":0},{"$f":"'Runde 1 - 5'!AI6","v":0},null,null,null,null,null,null,null,null,null,null,null,null,null,null,null,null,null,-9999999,""]
[null,{"$f":"'Runde 1 - 5'!B42","v":0},{"$f":"'Runde 1 - 5'!B44","v":0},null,null,null,null,null,null,null,null,null,null,null,null,null,null,null,null,null,-9999999,""]
[null,{"$f":"'Runde 1 - 5'!C42","v":0},{"$f":"'Runde 1 - 5'!C44","v":0},null,null,null,null,null,null,null,null,null,null,null,null,null,null,null,null,null,-9999999,""]
[null,{"$f":"'Runde 1 - 5'!D42","v":0},{"$f":"'Runde 1 - 5'!D44","v":0},null,null,null,null,null,null,null,null,null,null,null,null,null,null,null,null,null,-9999999,""]
[null,{"$f":"'Runde 1 - 5'!E42","v":0},{"$f":"'Runde 1 - 5'!E44","v":0},null,null,null,null,null,null,null,null,null,null,null,null,null,null,null,null,null,-9999999,""]
[null,{"$f":"'Runde 1 - 5'!H42","v":0},{"$f":"'Runde 1 - 5'!H44","v":0},null,null,null,null,null,null,null,null,null,null,null,null,null,null,null,null,null,-9999999,""]
[null,{"$f":"'Runde 1 - 5'!I42","v":0},{"$f":"'Runde 1 - 5'!I44","v":0},null,null,null,null,null,null,null,null,null,null,null,null,null,null,null,null,null,-9999999,""]
[null,{"$f":"'Runde 1 - 5'!J42","v":0},{"$f":"'Runde 1 - 5'!J44","v":0},null,null,null,null,null,null,null,null,null,null,null,null,null,null,null,null,null,-9999999,""]
[null,{"$f":"'Runde 1 - 5'!$K42","v":0},{"$f":"'Runde 1 - 5'!K44","v":0},null,null,null,null,null,null,null,null,null,null,null,null,null,null,null,null,null,-9999999,""]
[null,{"$f":"'Runde 1 - 5'!$N42","v":0},{"$f":"'Runde 1 - 5'!$N44","v":0},null,null,null,null,null,null,null,null,null,null,null,null,null,null,null,null,null,-9999999,""]
[null,{"$f":"'Runde 1 - 5'!$O42","v":0},{"$f":"'Runde 1 - 5'!$O44","v":0},null,null,null,null,null,null,null,null,null,null,null,null,null,null,null,null,null,-9999999,""]
[null,{"$f":"'Runde 1 - 5'!$P42","v":0},{"$f":"'Runde 1 - 5'!$P44","v":0},null,null,null,null,null,null,null,null,null,null,null,null,null,null,null,null,null,-9999999,""]
[null,{"$f":"'Runde 1 - 5'!$Q42","v":0},{"$f":"'Runde 1 - 5'!$Q44","v":0},null,null,null,null,null,null,null,null,null,null,null,null,null,null,null,null,null,-9999999,""]
[null,{"$f":"'Runde 1 - 5'!$T42","v":0},{"$f":"'Runde 1 - 5'!$T44","v":0},null,null,null,null,null,null,null,null,null,null,null,null,null,null,null,null,null,-9999999,""]
[null,{"$f":"'Runde 1 - 5'!$U42","v":0},{"$f":"'Runde 1 - 5'!$U44","v":0},null,null,null,null,null,null,null,null,null,null,null,null,null,null,null,null,null,-9999999,""]
[null,{"$f":"'Runde 1 - 5'!$V42","v":0},{"$f":"'Runde 1 - 5'!$V44","v":0},null,null,null,null,null,null,null,null,null,null,null,null,null,null,null,null,null,-9999999,""]
[null,{"$f":"'Runde 1 - 5'!$W42","v":0},{"$f":"'Runde 1 - 5'!$W44","v":0},null,null,null,null,null,null,null,null,null,null,null,null,null,null,null,null,null,-9999999,""]
[null,{"$f":"'Runde 1 - 5'!$Z42","v":0},{"$f":"'Runde 1 - 5'!$Z44","v":0},null,null,null,null,null,null,null,null,null,null,null,null,null,null,null,null,null,-9999999,""]
[null,{"$f":"'Runde 1 - 5'!$AA42","v":0},{"$f":"'Runde 1 - 5'!$AA44","v":0},null,null,null,null,null,null,null,null,null,null,null,null,null,null,null,null,null,-9999999,""]
[null,{"$f":"'Runde 1 - 5'!$AB42","v":0},{"$f":"'Runde 1 - 5'!$AB44","v":0},null,null,null,null,null,null,null,null,null,null,null,null,null,null,null,null,null,-9999999,""]
[null,{"$f":"'Runde 1 - 5'!$AC42","v":0},{"$f":"'Runde 1 - 5'!$AC44","v":0},null,null,null,null,null,null,null,null,null,null,null,null,null,null,null,null,null,-9999999,""]
[null,{"$f":"'Runde 1 - 5'!$AF42","v":0},{"$f":"'Runde 1 - 5'!$AF44","v":0},null,null,null,null,null,null,null,null,null,null,null,null,null,null,null,null,null,-9999999,""]
[null,{"$f":"'Runde 1 - 5'!$AG42","v":0},{"$f":"'Runde 1 - 5'!$AG44","v":0},null,null,null,null,null,null,null,null,null,null,null,null,null,null,null,null,null,-9999999,""]
[null,{"$f":"'Runde 1 - 5'!$AH42","v":0},{"$f":"'Runde 1 - 5'!$AH44","v":0},null,null,null,null,null,null,null,null,null,null,null,null,null,null,null,null,null,-9999999,""]
[null,{"$f":"'Runde 1 - 5'!$AI42","v":0},{"$f":"'Runde 1 - 5'!$AI44","v":0},null,null,null,null,null,null,null,null,null,null,null,null,null,null,null,null,null,-9999999,""]
[null,{"$f":"'Runde 1 - 5'!$B80","v":0},{"$f":"'Runde 1 - 5'!$B82","v":0},null,null,null,null,null,null,null,null,null,null,null,null,null,null,null,null,null,-9999999,""]
[null,{"$f":"'Runde 1 - 5'!$C80","v":0},{"$f":"'Runde 1 - 5'!$C82","v":0},null,null,null,null,null,null,null,null,null,null,null,null,null,null,null,null,null,-9999999,""]
[null,{"$f":"'Runde 1 - 5'!$D80","v":0},{"$f":"'Runde 1 - 5'!$D82","v":0},null,null,null,null,null,null,null,null,null,null,null,null,null,null,null,null,null,-9999999,""]
[null,{"$f":"'Runde 1 - 5'!$E80","v":0},{"$f":"'Runde 1 - 5'!$E82","v":0},null,null,null,null,null,null,null,null,null,null,null,null,null,null,null,null,null,-9999999,""]
[null,{"$f":"'Runde 1 - 5'!$H80","v":0},{"$f":"'Runde 1 - 5'!$H82","v":0},null,null,null,null,null,null,null,null,null,null,null,null,null,null,null,null,null,-9999999,""]
[null,{"$f":"'Runde 1 - 5'!$I80","v":0},{"$f":"'Runde 1 - 5'!$I82","v":0},null,null,null,null,null,null,null,null,null,null,null,null,null,null,null,null,null,-9999999,""]
[null,{"$f":"'Runde 1 - 5'!$J80","v":0},{"$f":"'Runde 1 - 5'!$J82","v":0},null,null,null,null,null,null,null,null,null,null,null,null,null,null,null,null,null,-9999999,""]
[null,{"$f":"'Runde 1 - 5'!$K80","v":0},{"$f":"'Runde 1 - 5'!$K82","v":0},null,null,null,null,null,null,null,null,null,null,null,null,null,null,null,null,null,-9999999,""]
[null,{"$f":"'Runde 1 - 5'!$N80","v":0},{"$f":"'Runde 1 - 5'!$N82","v":0},null,null,null,null,null,null,null,null,null,null,null,null,null,null,null,null,null,-9999999,""]
[null,{"$f":"'Runde 1 - 5'!$O80","v":0},{"$f":"'Runde 1 - 5'!$O82","v":0},null,null,null,null,null,null,null,null,null,null,null,null,null,null,null,null,null,-9999999,""]
[null,{"$f":"'Runde 1 - 5'!$P80","v":0},{"$f":"'Runde 1 - 5'!$P82","v":0},null,null,null,null,null,null,null,null,null,null,null,null,null,null,null,null,null,-9999999,""]
[null,{"$f":"'Runde 1 - 5'!$Q80","v":0},{"$f":"'Runde 1 - 5'!$Q82","v":0},null,null,null,null,null,null,null,null,null,null,null,null,null,null,null,null,null,-9999999,""]
[null,{"$f":"'Runde 1 - 5'!$T80","v":0},{"$f":"'Runde 1 - 5'!$T82","v":0},null,null,null,null,null,null,null,null,null,null,null,null,null,null,null,null,null,-9999999,""]
[null,{"$f":"'Runde 1 - 5'!$U80","v":0},{"$f":"'Runde 1 - 5'!$U82","v":0},null,null,null,null,null,null,null,null,null,null,null,null,null,null,null,null,null,-9999999,""]
[null,{"$f":"'Runde 1 - 5'!$V80","v":0},{"$f":"'Runde 1 - 5'!$V82","v":0},null,null,null,null,null,null,null,null,null,null,null,null,null,null,null,null,null,-9999999,""]
[null,{"$f":"'Runde 1 - 5'!$W80","v":0},{"$f":"'Runde 1 - 5'!$W82","v":0},null,null,null,null,null,null,null,null,null,null,null,null,null,null,null,null,null,-9999999,""]
[null,{"$f":"'Runde 1 - 5'!$Z80","v":0},{"$f":"'Runde 1 - 5'!$Z82","v":0},null,null,null,null,null,null,null,null,null,null,null,null,null,null,null,null,null,-9999999,""]
[null,{"$f":"'Runde 1 - 5'!$AA80","v":0},{"$f":"'Runde 1 - 5'!$AA82","v":0},null,null,null,null,null,null,null,null,null,null,null,null,null,null,null,null,null,{"$f":"IF(ISERROR(G70+J70+M70+P70+S70),-9999999,IF(G70+J70+M70+P70+S70=\"\",-9999999,IF(F70=0,-9999999,G70+J70+M70+P70+S70)))","v":-9999999},{"$f":"IF(F70=0,\"\",F70)","v":""}]
[null,{"$f":"'Runde 1 - 5'!$AB80","v":0},{"$f":"'Runde 1 - 5'!$AB82","v":0},null,null,null,null,null,null,null,null,null,null,null,null,null,null,null,null,null,-9999999,""]
[null,{"$f":"'Runde 1 - 5'!$AC80","v":0},{"$f":"'Runde 1 - 5'!$AC82","v":0},null,null,null,null,null,null,null,null,null,null,null,null,null,null,null,null,null,-9999999,""]
[null,{"$f":"'Runde 1 - 5'!$AF80","v":0},{"$f":"'Runde 1 - 5'!$AF82","v":0},null,null,null,null,null,null,null,null,null,null,null,null,null,null,null,null,null,-9999999,""]
[null,{"$f":"'Runde 1 - 5'!$AG80","v":0},{"$f":"'Runde 1 - 5'!$AG82","v":0},null,null,null,null,null,null,null,null,null,null,null,null,null,null,null,null,null,-9999999,""]
[null,{"$f":"'Runde 1 - 5'!$AH80","v":0},{"$f":"'Runde 1 - 5'!$AH82","v":0},null,null,null,null,null,null,null,null,null,null,null,null,null,null,null,null,null,-9999999,""]
[null,{"$f":"'Runde 1 - 5'!$AI80","v":0},{"$f":"'Runde 1 - 5'!$AI82","v":0},null,null,null,null,null,null,null,null,null,null,null,null,null,null,null,null,null,-9999999,""]
[null,{"$f":"'Runde 1 - 5'!$B118","v":0},{"$f":"'Runde 1 - 5'!$B120","v":0},null,null,null,null,null,null,null,null,null,null,null,null,null,null,null,null,null,-9999999,""]
[null,{"$f":"'Runde 1 - 5'!$C118","v":0},{"$f":"'Runde 1 - 5'!$C120","v":0},null,null,null,null,null,null,null,null,null,null,null,null,null,null,null,null,null,-9999999,""]
[null,{"$f":"'Runde 1 - 5'!$D118","v":0},{"$f":"'Runde 1 - 5'!$D120","v":0},null,null,null,null,null,null,null,null,null,null,null,null,null,null,null,null,null,-9999999,""]
[null,{"$f":"'Runde 1 - 5'!$E118","v":0},{"$f":"'Runde 1 - 5'!$E120","v":0},null,null,null,null,null,null,null,null,null,null,null,null,null,null,null,null,null,-9999999,""]
[null,{"$f":"'Runde 1 - 5'!$H118","v":0},{"$f":"'Runde 1 - 5'!$H120","v":0},null,null,null,null,null,null,null,null,null,null,null,null,null,null,null,null,null,-9999999,""]
[null,{"$f":"'Runde 1 - 5'!$I118","v":0},{"$f":"'Runde 1 - 5'!$I120","v":0},null,null,null,null,null,null,null,null,null,null,null,null,null,null,null,null,null,-9999999,""]
[null,{"$f":"'Runde 1 - 5'!$J118","v":0},{"$f":"'Runde 1 - 5'!$J120","v":0},null,null,null,null,null,null,null,null,null,null,null,null,null,null,null,null,null,-9999999,""]
[null,{"$f":"'Runde 1 - 5'!$K118","v":0},{"$f":"'Runde 1 - 5'!$K120","v":0},null,null,null,null,null,null,null,null,null,null,null,null,null,null,null,null,null,-9999999,""]
[null,{"$f":"'Runde 1 - 5'!$N118","v":0},{"$f":"'Runde 1 - 5'!$N120","v":0},null,null,null,null,null,null,null,null,null,null,null,null,null,null,null,null,null,-9999999,""]
[null,{"$f":"'Runde 1 - 5'!$O118","v":0},{"$f":"'Runde 1 - 5'!$O120","v":0},null,null,null,null,null,null,null,null,null,null,null,null,null,null,null,null,null,-9999999,""]
[null,{"$f":"'Runde 1 - 5'!$P118","v":0},{"$f":"'Runde 1 - 5'!$P120","v":0},null,null,null,null,null,null,null,null,null,null,null,null,null,null,null,null,null,-9999999,""]
[null,{"$f":"'Runde 1 - 5'!$Q118","v":0},{"$f":"'Runde 1 - 5'!$Q120","v":0},null,null,null,null,null,null,null,null,null,null,null,null,null,null,null,null,null,-9999999,""]
[null,{"$f":"'Runde 1 - 5'!$T118","v":0},{"$f":"'Runde 1 - 5'!$T120","v":0},null,null,null,null,null,null,null,null,null,null,null,null,null,null,null,null,null,-9999999,""]
[null,{"$f":"'Runde 1 - 5'!$U118","v":0},{"$f":"'Runde 1 - 5'!$U120","v":0},null,null,null,null,null,null,null,null,null,null,null,null,null,null,null,null,null,-9999999,""]
[null,{"$f":"'Runde 1 - 5'!$V118","v":0},{"$f":"'Runde 1 - 5'!$V120","v":0},null,null,null,null,null,null,null,null,null,null,null,null,null,null,null,null,null,-9999999,""]
[null,{"$f":"'Runde 1 - 5'!$W118","v":0},{"$f":"'Runde 1 - 5'!$W120","v":0},null,null,null,null,null,null,null,null,null,null,null,null,null,null,null,null,null,-9999999,""]
[null,{"$f":"'Runde 1 - 5'!$Z118","v":0},{"$f":"'Runde 1 - 5'!$Z120","v":0},null,null,null,null,null,null,null,null,null,null,null,null,null,null,null,null,null,-9999999,""]
[null,{"$f":"'Runde 1 - 5'!$AA118","v":0},{"$f":"'Runde 1 - 5'!$AA120","v":0},null,null,null,null,null,null,null,null,null,null,null,null,null,null,null,null,null,-9999999,""]
[null,{"$f":"'Runde 1 - 5'!$AB118","v":0},{"$f":"'Runde 1 - 5'!$AB120","v":0},null,null,null,null,null,null,null,null,null,null,null,null,null,null,null,null,null,-9999999,""]
[null,{"$f":"'Runde 1 - 5'!$AC118","v":0},{"$f":"'Runde 1 - 5'!$AC120","v":0},null,null,null,null,null,null,null,null,null,null,null,null,null,null,null,null,null,-9999999,""]
[null,{"$f":"'Runde 1 - 5'!$AF118","v":0},{"$f":"'Runde 1 - 5'!$AF120","v":0},null,null,null,null,null,null,null,null,null,null,null,null,null,null,null,null,null,-9999999,""]
[null,{"$f":"'Runde 1 - 5'!$AG118","v":0},{"$f":"'Runde 1 - 5'!$AG120","v":0},null,null,null,null,null,null,null,null,null,null,null,null,null,null,null,null,null,-9999999,""]
[null,{"$f":"'Runde 1 - 5'!$AH118","v":0},{"$f":"'Runde 1 - 5'!$AH120","v":0},null,null,null,null,null,null,null,null,null,null,null,null,null,null,null,null,null,-9999999,""]
[null,{"$f":"'Runde 1 - 5'!$AI118","v":0},{"$f":"'Runde 1 - 5'!$AI120","v":0},null,null,null,null,null,null,null,null,null,null,null,null,null,null,null,null,null,-9999999,""]
[]
[null,null,null,null,null,null," "]

{"sheet":"Anleitung","index":4,"n_rows":0,"n_cols":0,"rows_kept":0,"cut":false,"hidden":false,"merged":[]}

{"sheet":"Siegerliste","index":5,"n_rows":103,"n_cols":4,"rows_kept":103,"cut":false,"hidden":true,"merged":[[0,1,1,3]]}
[null,"Siegerliste des \n Schafkopfturnieres"]
[]
[null,{"$f":"\"Runde \"&'Wer - Wo'!G1-1","v":"Runde 0"},{"$f":"TODAY()","v":"2019-06-30"}]
[null,"Platz","Punkte","Name"]
[null,1]
[null,{"$f":"IF(C6=C5,B5,B5+1)","v":1}]
[null,{"$f":"IF(C7=C6,B6,B6+1)","v":1}]
[null,1]
[null,1]
[null,1]
[null,1]
[null,1]
[null,1]
[null,1]
[null,1]
[null,1]
[null,1]
[null,1]
[null,1]
[null,1]
[null,1]
[null,1]
[null,1]
[null,1]
[null,1]
[null,1]
[null,1]
[null,1]
[null,1]
[null,1]
[null,1]
[null,1]
[null,1]
[null,1]
[null,1]
[null,1]
[null,1]
[null,1]
[null,1]
[null,1]
[null,1]
[null,1]
[null,1]
[null,1]
[null,1]
[null,1]
[null,1]
[null,1]
[null,1]
[null,1]
[null,1]
[null,1]
[null,1]
[null,1]
[null,1]
[null,1]
[null,1]
[null,1]
[null,1]
[null,1]
[null,1]
[null,1]
[null,1]
[null,1]
[null,1]
[null,1]
[null,1]
[null,1]
[null,1]
[null,1]
[null,{"$f":"IF(C71=C70,B70,B70+1)","v":1}]
[null,1]
[null,1]
[null,1]
[null,1]
[null,1]
[null,1]
[null,1]
[null,1]
[null,1]
[null,1]
[null,1]
[null,1]
[null,1]
[null,1]
[null,1]
[null,1]
[null,1]
[null,1]
[null,1]
[null,1]
[null,1]
[null,1]
[null,1]
[null,1]
[null,1]
[null,1]
[null,1]
[null,1]
[null,1]
[]
[]
[null,null,{"$f":"TODAY()","v":"2019-06-30"}]

{"sheet":"Urkunde","index":6,"n_rows":31,"n_cols":1,"rows_kept":31,"cut":false,"hidden":true,"merged":[[17,0,20,7],[30,0,33,7]]}
[]
[]
[]
[]
[]
[]
[]
[]
[]
[]
[]
[]
[]
[]
[]
[]
[]
[{"$f":"Siegerliste!D5","v":0}]
[]
[]
[]
[]
[]
[]
[]
[]
[]
[]
[]
[]
[{"$f":"\"den \"&Siegerliste!B5&\". Platz\"","v":"den 1. Platz"}]